Workbook

Sheet Introduction
F3: Non-Compliance Risk Assessment Tool (NC-RAT)
B6: INTRODUCTION
B7: Compliance protects national markets from non-compliant products and safeguards benefits from adopted energy efficiency and quality policies. Despite playing a key role in policy implementation, compliance is often overlooked or delayed by the governments, funders and development partners. One reason is that significant efforts and resources are required to design and enforce robust compliance frameworks, but it is challenging to evaluate associated impacts. There is no clear methodology to estimate the benefits of compliance such as reduced number of non-compliant products on the market to provide a compelling reasoning for the investment in compliance-related initiatives. Testing a large number of products from the market to assess non-compliance rate is also cost prohibitive for many. Recognizing the challenge that governments face to measure market non-compliance rate and build the case for compliance, CLASP has developed Non-Compliance Risk Assessment Tool (NC-RAT). The Tool serves an initial step for the policy makers and others to: • Assess national compliance processes for product energy efficiency and quality programs, and associated market non-compliance risk • Advance policy compliance and enforcement by identifying specific gaps, prioritize investment in compliance processes with greatest impact to strengthening them • Build a case for investment in policy compliance and enforcement initiatives • Track progress/improvement of compliance efforts, e.g. conduct initial assessment to set the benchmark and assess the compliance program regularly, i.e. on annual basis. NC-RAT is an easy-to-use Tool that is based on qualitative assessment of national compliance program and organized under five Indicators: Regulation, Resources, Certification & Registration, Market Surveillance & Enforcement, and Compliance Communication. Each Indicator includes relevant questions for the user to respond to, based on which the Tool calculates scores 1) for each Indicator and 2) a corresponding overall score for market non-compliance risk. The Tool also provides initial recommendations for strengthening compliance program, which are informed by gap assessment based on responses. The estimated time for completing this assessment is 30-60 minutes if the user has the necessary information at hand. For questions and inquiries on the Tool, suggestions for improvement, sharing country's assessment results, etc. please contact Lina Kelpsaite at lkelpsaite@clasp.ngo. For additional compliance resources, please visit clasp.ngo.
B14: INSTRUCTIONS TO USE NC-RAT TOOL
B15: STEP 1. Visit 'Results' tab to complete initial information such as Country, Assessment Year, Product Energy Source, as well as your Name, Position and Organization. Additionally, respond to two Risk Considerations and Factors questions for more conclusive assessment. STEP 2. Next go to Regulation Indicator under I-Regulation tab to start the assessment. Respond to Initial Assessment Question I, which will then prompt you to the next step. If the country has regulation (or provisions) to implement and enforce product energy efficiency or quality policies or is in process of development, proceed with responding to the questions under this indicator. Complete the questions under this and other indicators to best of your ability and select the answers that best reflect your compliance program. Note, if the country does not have a regulation (or provisions), the Tool is not applicable and prompts you to reference CLASP compliance resources for developing compliance framework for policy implementation. STEP 3. Go to II-Resources tab to complete questions for Resources Indicator, which include questions on institutional capcaity and collaboration, access to infrastructure and funding. STEP 4. Complete the questions for the remaining three Indicators under III-Compliance Processes tab: Certification & Registration, Market Surveillance & Enforcement, and Compliance Communication. For each indicator, complete the Initial Assessment Question and then, if prompted, continue responding to the questions. E.g. if the country does not have conformity assessment (certification and registration processes) in place then there is no benefit in responding the questions related to that indicator. In this case the corresponding indicator score will be 0.0 and you can refer to Recommendations tab for proposed actions to set up the conformity assessment processes. This tab also includes a set of questions on Regional Collaboration, which fall under Market Surveillance & Enforcement indicator for the assessment. Note, that some questions will appear 'non applicable' if they become not relevant based on your previous responses. STEP 5. After answering all available questions under five Indicators, return to Results tab to see assessment results. Indicator table provides individual scores for each Indicator which varies between 0.0 (min) -1.0 (max). Responses under each question have assigned scores, the sum of which is the Indicator score (normalized). The maximum score corresponds to the policy compliance best practices for minimizing number of non-compliance products on the market. For reference, the individual indicator scores are also listed under tabs with assessment questions. The coloring of the cells with individual indicator scores corresponds to the scores with red corresponding to poorer compliance performance as compared to yellow - adequate performance and green - compliance program performance is satisfactory. Assessment of Compliance Program chart (spider chart) provides a visual representation of the indicators' scores. The Assessment of the Resources chart show where the compliance program is in terms of needed resources. The overall market non-compliance risk score varies between 0 (min) -100 (max) with the same corresponding cell colors. The overall score is calculated based on the assigned weights for each indicator and the indicator scores. The scale of 100 is used rather than 1.0 for the overall score for better visual representation. Note, that overall score does NOT indicate non-compliance level of the product market but rather the market risk of non-compliance based on the exising compliance processes. STEP 6. If assessment scores for individual Indicators are below 1.0, refer to the Recommendations tab to review the proposed Recommendations on improving compliance program. The Tool provides two types of recommendations: 1) key recommendations for a particular aspect of the programs that has a major gap as identified by this Tool, and 2) secondary recommendations for the program aspects which can benefit from further improvement. Recommendations include proposed action, estimated level of effort and stakeholders, who can support the implementation of recommendation. If you are seeking for more detailed recommendations, please contact CLASP or refer to CLASP's compliance resources on clasp.ngo. The Results and Recommendations tabs are set up for printing. As this Tool is a downloadable spreadsheet, the results of this assessment are only visible to you. You are welcome to share the results with CLASP compliance team, which we will keep confidential. We would be happy to assist you in clarifying the recommendations and answering your questions - see contact information above.

Sheet Results
A1: MARKET NON-COMPLIANCE RISK ASSESSMENT RESULTS
B4: Country (select) | F4: Name (write in):
B5: Assessment Year (select) | F5: Role (write in):
B6: Product Energy Source (select) | F6: Organization (write in):
F7: Date (write in):
B9: Risk Considerations and Factors
B10: Are you aware of known incidents of high non-compliance in country's product market (e.g. due to smuggling, lack of enforcement, etc.)?
B11: Are regulated products primarily imported, locally manufactured or both?
B14: Indicator | C14: Indicator Score (out of 1)
B15: Regulation | C15: ='I - Regulation'!D2 -> 0 | E15: Overall score (out of 100) | F15: =SUM(L20:L25) -> 0
B16: Resources | C16: ='II - Resources'!D2 -> 0 | E16: Evaluation: | F16: =IF((F15=0),"Not available",IF((F15<=15),"EXTREMELY HIGH NON-COMPLIANCE RISK",IF((F15<=40),"HIGH NON-COMPLIANCE RISK",IF((F15<=70),"MEDIUM NON-COMPLIANCE RISK",IF((F15<=90),"LOW NON-COMPLIANCE RISK",IF((F15<=100),"MINIMAL NON-COMPLIANCE RISK","N/A")))))) -> Not available
B17: Processes - Conformity Assessment | C17: ='III - Compliance Processes'!D6 -> 0 | E17: Explanation: | F17: =IF(F16="MINIMAL NON-COMPLIANCE RISK",'Scorecard lists'!F7,IF(F16="LOW NON-COMPLIANCE RISK",'Scorecard lists'!F6,IF(F16="MEDIUM NON-COMPLIANCE RISK",'Scorecard lists'!F5,IF(F16="HIGH NON-COMPLIANCE RISK",'Scorecard lists'!F4,IF(F16="EXTREMELY HIGH NON-COMPLIANCE RISK",'Scorecard lists'!F3,IF(F16="Not Available","Not Available","Not Available")))))) -> Not Available
B18: Processes - Market Surveillance & Enforcement | C18: ='III - Compliance Processes'!D7 -> 0
B19: Compliance Communication | C19: ='III - Compliance Processes'!D8 -> 0 | E19: Additional consideration: | F19: =IF(Results!D10="Yes", "The non-compliance risk may be higher due to known non-compliance incidents.", " ") ->  | K19: Indicator | L19: Weighted Score | M19: Adjusted Score | N19: Max Score
E20: Next: | F20: refer to Recommendations tab for proposed actions to improve national compliance program | K20: =B15 -> Regulation | L20: =C15*M20 -> 0 | M20: =N20 -> 25 | N20: 25
K21: =B16 -> Resources | L21: =C16*M21 -> 0 | M21: =N21 -> 25 | N21: 25
K22: =B17 -> Processes - Conformity Assessment | L22: =C17*M22 -> 0 | M22: =IF(D11='Scorecard lists'!G3, N22+2, IF(Results!D11='Scorecard lists'!G5,N22-2,N22)) -> 20 | N22: 20
K23: =B18 -> Processes - Market Surveillance & Enforcement | L23: =C18*M23 -> 0 | M23: =IF(D11='Scorecard lists'!G3, N23-2, IF(Results!D11='Scorecard lists'!G5,N23+2,N23)) -> 20 | N23: 20
K24: =B19 -> Compliance Communication | L24: =C19*M24 -> 0 | M24: =N24 -> 10 | N24: 10
B34: Please direct your questions, comments and suggestions for improvement to Lina Kelpsaite at lkelpsaite@clasp.ngo.

Sheet Recommendations
A1: RECOMMENDATIONS
A2: Provided here are recommendations for improving compliance program to minimize country's market risk of non-compliance. These recommedations are informed by the assessment results in this Tool and are organized by compliance indicators and sub-indicators. The recommended actions are categorised by the priority level: - Key Priority recommendations are provided for the sub-indicators that require significant improvement. This corresponds to a gap of above 40% from the max possible sub-indicator score. - Secondary Priority recommendations are provided for sub-indicators under which program performs quite well but additional improvements can be made. This corresponds to a gap of under 40% as compared to max sub-indicator score. The areas that perform as per compliance best practices indicated in this assessment, there is No improvement to be made. Use drop-down menu below to select Priority level. The recommended actions for improving and strengthening compliance program, level of effort, suggested stakeholders are displayed in the table below. Please contact CLASP compliance team at lkelpsaite@clasp.ngo if you have questions about recommendations or are interested in support for compliance program. | J2: Indicator | K2: Evaluation Score | L2: Max score | M2: Gap | N2: Needs improvement
J3: Regulation | K3: =Results!C15 -> 0 | L3: 1 | M3: =(L3-K3)/L3 -> 1 | N3: =VLOOKUP(O6, J10:N12,5) -> Key Priority
B4: Priority Level (select) | J4: Resources | K4: =Results!C16 -> 0 | L4: =SUM(L13:L18) -> 1 | M4: =(L4-K4)/L4 -> 1 | N4: =VLOOKUP(O6, J13:N18,5) -> Key Priority
J5: ='III - Compliance Processes'!A18 -> Processes - Certification & Registration | K5: =Results!C17 -> 0 | L5: =SUM(L19:L20) -> 1 | M5: =(L5-K5)/L5 -> 1 | N5: =VLOOKUP(O6, J19:N20,5) -> Key Priority | O5: No Improvement
J6: =Results!B18 -> Processes - Market Surveillance & Enforcement | K6: =Results!C18 -> 0 | L6: =SUM(L21:L24) -> 1 | M6: =(L6-K6)/L6 -> 1 | N6: =VLOOKUP(O6, J21:N24,5) -> Key Priority | O6: Secondary Priority
B7: Key Improvement Areas | J7: =Results!B19 -> Compliance Communication | K7: =Results!C19 -> 0 | L7: =SUM(L25:L26) -> 1 | M7: =(L7-K7)/L7 -> 1 | N7: =VLOOKUP(O6, J25:N26,5) -> Key Priority | O7: Not Priority
B8: Indicator | C8: Sub-Indicator | D8: Recommendation | E8: Level of Effort | F8: Who?
B9: =IFERROR(INDEX($I$10:$Q$26, SMALL(IF((INDEX($I$10:$N$26,,$C$3)=$C$4),MATCH(ROW($N$10:$N$26),ROW($N$10:$N$26)),""), ROWS($A$1:A1)), COLUMNS($A$3:A3)), " ") -> Regulation | C9: =IFERROR(INDEX($I$10:$Q$26, SMALL(IF((INDEX($I$10:$N$26,,$C$3)=$C$4),MATCH(ROW($N$10:$N$26),ROW($N$10:$N$26)),""), ROWS($A$1:B1)), COLUMNS($A$3:B3))," ") -> Regulations - Key Provisions | D9: =IFERROR(INDEX($I$10:$Q$26, SMALL(IF((INDEX($I$10:$N$26,,$C$3)=$C$4),MATCH(ROW($N$10:$N$26),ROW($N$10:$N$26)),""), ROWS($A$1:G1)), COLUMNS($A$3:G3))," ") -> Adopt or revise the existing regulation with critical provisions such as roles and responsibilities, offences and penalties, which is foundational to effective policy compliance. | E9: =IFERROR(INDEX($I$10:$Q$26, SMALL(IF((INDEX($I$10:$N$26,,$C$3)=$C$4),MATCH(ROW($N$10:$N$26),ROW($N$10:$N$26)),""), ROWS($A$1:H1)), COLUMNS($A$1:H1))," ") -> Low | F9: =IFERROR(INDEX($I$10:$Q$26, SMALL(IF((INDEX($I$10:$N$26,,$C$3)=$C$4),MATCH(ROW($N$10:$N$26),ROW($N$10:$N$26)),""), ROWS($A$1:I1)), COLUMNS($A$1:I1))," ") -> - Relevant government agency(-ies) - Expert technical assistance | I9: Indicator | J9: Indicator - area | K9: Evaluation Score | L9: Max score | M9: Gap | N9: Needs improvement | O9: Recomendation - Key Priority | P9: Level of Effort - Key Priority | Q9: Who? - Key priority
B10: =IFERROR(INDEX($I$10:$Q$26, SMALL(IF((INDEX($I$10:$N$26,,$C$3)=$C$4),MATCH(ROW($N$10:$N$26),ROW($N$10:$N$26)),""), ROWS($A$1:A2)), COLUMNS($A$3:A4)), " ") -> Regulation | C10: =IFERROR(INDEX($I$10:$Q$26, SMALL(IF((INDEX($I$10:$N$26,,$C$3)=$C$4),MATCH(ROW($N$10:$N$26),ROW($N$10:$N$26)),""), ROWS($A$1:B2)), COLUMNS($A$3:B4))," ") -> Regulations - Additional Provisions | D10: =IFERROR(INDEX($I$10:$Q$26, SMALL(IF((INDEX($I$10:$N$26,,$C$3)=$C$4),MATCH(ROW($N$10:$N$26),ROW($N$10:$N$26)),""), ROWS($A$1:G2)), COLUMNS($A$3:G4))," ") -> Adopt or revise the existing regulation with additional provisions for product ceritfication and registration and market surveillance powers, which are essential for effectively setting up policy compliance processes. | E10: =IFERROR(INDEX($I$10:$Q$26, SMALL(IF((INDEX($I$10:$N$26,,$C$3)=$C$4),MATCH(ROW($N$10:$N$26),ROW($N$10:$N$26)),""), ROWS($A$1:H2)), COLUMNS($A$1:H2))," ") -> Low | F10: =IFERROR(INDEX($I$10:$Q$26, SMALL(IF((INDEX($I$10:$N$26,,$C$3)=$C$4),MATCH(ROW($N$10:$N$26),ROW($N$10:$N$26)),""), ROWS($A$1:I2)), COLUMNS($A$1:I2))," ") -> - Relevant government agency(-ies) - Expert technical assistance | I10: =$J$3 -> Regulation | J10: ='I - Regulation'!A13 -> Regulations - Key Provisions | K10: ='I - Regulation'!H29 -> 0 | L10: ='I - Regulation'!I29 -> 0.6153846154 | M10: =(L10-K10)/L10 -> 1 | N10: =IF(M10=0,'Recom list'!C3, IF(M10<0.4,'Recom list'!C2, IF(M10>=0.4,'Recom list'!C1, "Error"))) -> Key Priority | O10: =IF(N10='Recom list'!$C$1,'Recom list'!C6, (IF(Recommendations!N10='Recom list'!$C$2,'Recom list'!F6, (IF(Recommendations!N10='Recom list'!$C$3, "None"))))) -> Adopt or revise the existing regulation with critical provisions such as roles and responsibilities, offences and penalties, which is foundational to effective policy compliance. | P10: =IF(N10='Recom list'!$C$1,'Recom list'!D6, (IF(Recommendations!N10='Recom list'!$C$2,'Recom list'!G6, (IF(Recommendations!N10='Recom list'!$C$3, "None"))))) -> Low | Q10: =IF(N10='Recom list'!$C$1,'Recom list'!E6, (IF(Recommendations!N10='Recom list'!$C$2,'Recom list'!H6, (IF(Recommendations!N10='Recom list'!$C$3, "None"))))) -> - Relevant government agency(-ies) - Expert technical assistance
B11: =IFERROR(INDEX($I$10:$Q$26, SMALL(IF((INDEX($I$10:$N$26,,$C$3)=$C$4),MATCH(ROW($N$10:$N$26),ROW($N$10:$N$26)),""), ROWS($A$1:A3)), COLUMNS($A$3:A4)), " ") -> Regulation | C11: =IFERROR(INDEX($I$10:$Q$26, SMALL(IF((INDEX($I$10:$N$26,,$C$3)=$C$4),MATCH(ROW($N$10:$N$26),ROW($N$10:$N$26)),""), ROWS($A$1:B3)), COLUMNS($A$3:B4))," ") -> Other - Administrative Guidelines | D11: =IFERROR(INDEX($I$10:$Q$26, SMALL(IF((INDEX($I$10:$N$26,,$C$3)=$C$4),MATCH(ROW($N$10:$N$26),ROW($N$10:$N$26)),""), ROWS($A$1:G3)), COLUMNS($A$3:G4))," ") -> Develop administrative guidance to complement the regulation that outlines in detail compliance processes and requirements. | E11: =IFERROR(INDEX($I$10:$Q$26, SMALL(IF((INDEX($I$10:$N$26,,$C$3)=$C$4),MATCH(ROW($N$10:$N$26),ROW($N$10:$N$26)),""), ROWS($A$1:H3)), COLUMNS($A$1:H3))," ") -> Medium | F11: =IFERROR(INDEX($I$10:$Q$26, SMALL(IF((INDEX($I$10:$N$26,,$C$3)=$C$4),MATCH(ROW($N$10:$N$26),ROW($N$10:$N$26)),""), ROWS($A$1:I3)), COLUMNS($A$1:I3))," ") -> - Relevant government agency(-ies) - Expert technical assistance | I11: =$J$3 -> Regulation | J11: ='I - Regulation'!A18 -> Regulations - Additional Provisions | K11: ='I - Regulation'!H30 -> 0 | L11: ='I - Regulation'!I30 -> 0.3076923077 | M11: =(L11-K11)/L11 -> 1 | N11: =IF(M11=0,'Recom list'!$C$3, IF(M11<0.4,'Recom list'!$C$2, IF(M11>=0.4,'Recom list'!$C$1, "Error"))) -> Key Priority | O11: =IF(N11='Recom list'!$C$1,'Recom list'!C7, (IF(Recommendations!N11='Recom list'!$C$2,'Recom list'!F7, (IF(Recommendations!N11='Recom list'!$C$3, "None"))))) -> Adopt or revise the existing regulation with additional provisions for product ceritfication and registration and market surveillance powers, which are essential for effectively setting up policy compliance processes. | P11: =IF(N11='Recom list'!$C$1,'Recom list'!D7, (IF(Recommendations!N11='Recom list'!$C$2,'Recom list'!G7, (IF(Recommendations!N11='Recom list'!$C$3, "None"))))) -> Low | Q11: =IF(N11='Recom list'!$C$1,'Recom list'!E7, (IF(Recommendations!N11='Recom list'!$C$2,'Recom list'!H7, (IF(Recommendations!N11='Recom list'!$C$3, "None"))))) -> - Relevant government agency(-ies) - Expert technical assistance
B12: =IFERROR(INDEX($I$10:$Q$26, SMALL(IF((INDEX($I$10:$N$26,,$C$3)=$C$4),MATCH(ROW($N$10:$N$26),ROW($N$10:$N$26)),""), ROWS($A$1:A4)), COLUMNS($A$3:A5)), " ") -> Resources | C12: =IFERROR(INDEX($I$10:$Q$26, SMALL(IF((INDEX($I$10:$N$26,,$C$3)=$C$4),MATCH(ROW($N$10:$N$26),ROW($N$10:$N$26)),""), ROWS($A$1:B4)), COLUMNS($A$3:B5))," ") -> Institutional Collaboration | D12: =IFERROR(INDEX($I$10:$Q$26, SMALL(IF((INDEX($I$10:$N$26,,$C$3)=$C$4),MATCH(ROW($N$10:$N$26),ROW($N$10:$N$26)),""), ROWS($A$1:G4)), COLUMNS($A$3:G5))," ") -> Identify Regulator, assign responsibilities and establish institutional collaboration with key agencies (e.g. customs) reponsible for policy enforcement before setting up compliance processes. | E12: =IFERROR(INDEX($I$10:$Q$26, SMALL(IF((INDEX($I$10:$N$26,,$C$3)=$C$4),MATCH(ROW($N$10:$N$26),ROW($N$10:$N$26)),""), ROWS($A$1:H4)), COLUMNS($A$1:H4))," ") -> Low | F12: =IFERROR(INDEX($I$10:$Q$26, SMALL(IF((INDEX($I$10:$N$26,,$C$3)=$C$4),MATCH(ROW($N$10:$N$26),ROW($N$10:$N$26)),""), ROWS($A$1:I4)), COLUMNS($A$1:I4))," ") -> - Relevant government agency(-ies) | I12: =$J$3 -> Regulation | J12: ='I - Regulation'!A23 -> Other - Administrative Guidelines | K12: ='I - Regulation'!H31 -> 0 | L12: ='I - Regulation'!I31 -> 0.07692307692 | M12: 1 | N12: =IF(M12=0,'Recom list'!$C$3, IF(M12<0.4,'Recom list'!$C$2, IF(M12>=0.4,'Recom list'!$C$1, "Error"))) -> Key Priority | O12: =IF(N12='Recom list'!$C$1,'Recom list'!C8, (IF(Recommendations!N12='Recom list'!$C$2,'Recom list'!F8, (IF(Recommendations!N12='Recom list'!$C$3, "None"))))) -> Develop administrative guidance to complement the regulation that outlines in detail compliance processes and requirements. | P12: =IF(N12='Recom list'!$C$1,'Recom list'!D8, (IF(Recommendations!N12='Recom list'!$C$2,'Recom list'!G8, (IF(Recommendations!N12='Recom list'!$C$3, "None"))))) -> Medium | Q12: =IF(N12='Recom list'!$C$1,'Recom list'!E8, (IF(Recommendations!N12='Recom list'!$C$2,'Recom list'!H8, (IF(Recommendations!N12='Recom list'!$C$3, "None"))))) -> - Relevant government agency(-ies) - Expert technical assistance
B13: =IFERROR(INDEX($I$10:$Q$26, SMALL(IF((INDEX($I$10:$N$26,,$C$3)=$C$4),MATCH(ROW($N$10:$N$26),ROW($N$10:$N$26)),""), ROWS($A$1:A5)), COLUMNS($A$3:A6)), " ") -> Resources | C13: =IFERROR(INDEX($I$10:$Q$26, SMALL(IF((INDEX($I$10:$N$26,,$C$3)=$C$4),MATCH(ROW($N$10:$N$26),ROW($N$10:$N$26)),""), ROWS($A$1:B5)), COLUMNS($A$3:B6))," ") -> Human Capital | D13: =IFERROR(INDEX($I$10:$Q$26, SMALL(IF((INDEX($I$10:$N$26,,$C$3)=$C$4),MATCH(ROW($N$10:$N$26),ROW($N$10:$N$26)),""), ROWS($A$1:G5)), COLUMNS($A$3:G6))," ") -> Ensure sufficient staffing with adequate training and knowledge to implement compliance processes. | E13: =IFERROR(INDEX($I$10:$Q$26, SMALL(IF((INDEX($I$10:$N$26,,$C$3)=$C$4),MATCH(ROW($N$10:$N$26),ROW($N$10:$N$26)),""), ROWS($A$1:H5)), COLUMNS($A$1:H5))," ") -> Medium | F13: =IFERROR(INDEX($I$10:$Q$26, SMALL(IF((INDEX($I$10:$N$26,,$C$3)=$C$4),MATCH(ROW($N$10:$N$26),ROW($N$10:$N$26)),""), ROWS($A$1:I5)), COLUMNS($A$1:I5))," ") -> - Internal resources - Knowledge sharing opportunities, trainings - Expert technical assistance | I13: =$J$4 -> Resources | J13: Institutional Collaboration | K13: ='II - Resources'!H37 -> 0 | L13: ='II - Resources'!I37 -> 0.3125 | M13: 1 | N13: =IF(M13=0,'Recom list'!$C$3, IF(M13<0.4,'Recom list'!$C$2, IF(M13>=0.4,'Recom list'!$C$1, "Error"))) -> Key Priority | O13: =IF(N13='Recom list'!$C$1,'Recom list'!C9, (IF(Recommendations!N13='Recom list'!$C$2,'Recom list'!F9, (IF(Recommendations!N13='Recom list'!$C$3, "None"))))) -> Identify Regulator, assign responsibilities and establish institutional collaboration with key agencies (e.g. customs) reponsible for policy enforcement before setting up compliance processes. | P13: =IF(N13='Recom list'!$C$1,'Recom list'!D9, (IF(Recommendations!N13='Recom list'!$C$2,'Recom list'!G9, (IF(Recommendations!N13='Recom list'!$C$3, "None"))))) -> Low | Q13: =IF(N13='Recom list'!$C$1,'Recom list'!E9, (IF(Recommendations!N13='Recom list'!$C$2,'Recom list'!H9, (IF(Recommendations!N13='Recom list'!$C$3, "None"))))) -> - Relevant government agency(-ies)
B14: =IFERROR(INDEX($I$10:$Q$26, SMALL(IF((INDEX($I$10:$N$26,,$C$3)=$C$4),MATCH(ROW($N$10:$N$26),ROW($N$10:$N$26)),""), ROWS($A$1:A6)), COLUMNS($A$3:A7)), " ") -> Resources | C14: =IFERROR(INDEX($I$10:$Q$26, SMALL(IF((INDEX($I$10:$N$26,,$C$3)=$C$4),MATCH(ROW($N$10:$N$26),ROW($N$10:$N$26)),""), ROWS($A$1:B6)), COLUMNS($A$3:B7))," ") -> Product Registration System | D14: =IFERROR(INDEX($I$10:$Q$26, SMALL(IF((INDEX($I$10:$N$26,,$C$3)=$C$4),MATCH(ROW($N$10:$N$26),ROW($N$10:$N$26)),""), ROWS($A$1:G6)), COLUMNS($A$3:G7))," ") -> Invest in product registration system - a tool to record information on all registered products available on the market. | E14: =IFERROR(INDEX($I$10:$Q$26, SMALL(IF((INDEX($I$10:$N$26,,$C$3)=$C$4),MATCH(ROW($N$10:$N$26),ROW($N$10:$N$26)),""), ROWS($A$1:H6)), COLUMNS($A$1:H6))," ") -> High | F14: =IFERROR(INDEX($I$10:$Q$26, SMALL(IF((INDEX($I$10:$N$26,,$C$3)=$C$4),MATCH(ROW($N$10:$N$26),ROW($N$10:$N$26)),""), ROWS($A$1:I6)), COLUMNS($A$1:I6))," ") -> - Expert technical assistance - Software developer | I14: Resources | J14: Human Capital | K14: ='II - Resources'!H38 -> 0 | L14: ='II - Resources'!I38 -> 0.125 | M14: 1 | N14: =IF(M14=0,'Recom list'!$C$3, IF(M14<0.4,'Recom list'!$C$2, IF(M14>=0.4,'Recom list'!$C$1, "Error"))) -> Key Priority | O14: =IF(N14='Recom list'!$C$1,'Recom list'!C10, (IF(Recommendations!N14='Recom list'!$C$2,'Recom list'!F10, (IF(Recommendations!N14='Recom list'!$C$3, "None"))))) -> Ensure sufficient staffing with adequate training and knowledge to implement compliance processes. | P14: =IF(N14='Recom list'!$C$1,'Recom list'!D10, (IF(Recommendations!N14='Recom list'!$C$2,'Recom list'!G10, (IF(Recommendations!N14='Recom list'!$C$3, "None"))))) -> Medium | Q14: =IF(N14='Recom list'!$C$1,'Recom list'!E10, (IF(Recommendations!N14='Recom list'!$C$2,'Recom list'!H10, (IF(Recommendations!N14='Recom list'!$C$3, "None"))))) -> - Internal resources - Knowledge sharing opportunities, trainings - Expert technical assistance
B15: =IFERROR(INDEX($I$10:$Q$26, SMALL(IF((INDEX($I$10:$N$26,,$C$3)=$C$4),MATCH(ROW($N$10:$N$26),ROW($N$10:$N$26)),""), ROWS($A$1:A7)), COLUMNS($A$3:A8)), " ") -> Resources | C15: =IFERROR(INDEX($I$10:$Q$26, SMALL(IF((INDEX($I$10:$N$26,,$C$3)=$C$4),MATCH(ROW($N$10:$N$26),ROW($N$10:$N$26)),""), ROWS($A$1:B7)), COLUMNS($A$3:B8))," ") -> Access to testing | D15: =IFERROR(INDEX($I$10:$Q$26, SMALL(IF((INDEX($I$10:$N$26,,$C$3)=$C$4),MATCH(ROW($N$10:$N$26),ROW($N$10:$N$26)),""), ROWS($A$1:G7)), COLUMNS($A$3:G8))," ") -> Identify existing independent testing facilities in country/region/outside region for testing products. Alternatively, when financially viable, build national testing lab. | E15: =IFERROR(INDEX($I$10:$Q$26, SMALL(IF((INDEX($I$10:$N$26,,$C$3)=$C$4),MATCH(ROW($N$10:$N$26),ROW($N$10:$N$26)),""), ROWS($A$1:H7)), COLUMNS($A$1:H7))," ") -> Low/High | F15: =IFERROR(INDEX($I$10:$Q$26, SMALL(IF((INDEX($I$10:$N$26,,$C$3)=$C$4),MATCH(ROW($N$10:$N$26),ROW($N$10:$N$26)),""), ROWS($A$1:I7)), COLUMNS($A$1:I7))," ") -> - Lab equipment provider and expert technical assistance (establishing Lab) | I15: Resources | J15: Product Registration System | K15: ='II - Resources'!H39 -> 0 | L15: ='II - Resources'!I39 -> 0.1875 | M15: 1 | N15: =IF(M15=0,'Recom list'!$C$3, IF(M15<0.4,'Recom list'!$C$2, IF(M15>=0.4,'Recom list'!$C$1, "Error"))) -> Key Priority | O15: =IF(N15='Recom list'!$C$1,'Recom list'!C11, (IF(Recommendations!N15='Recom list'!$C$2,'Recom list'!F11, (IF(Recommendations!N15='Recom list'!$C$3, "None"))))) -> Invest in product registration system - a tool to record information on all registered products available on the market. | P15: =IF(N15='Recom list'!$C$1,'Recom list'!D11, (IF(Recommendations!N15='Recom list'!$C$2,'Recom list'!G11, (IF(Recommendations!N15='Recom list'!$C$3, "None"))))) -> High | Q15: =IF(N15='Recom list'!$C$1,'Recom list'!E11, (IF(Recommendations!N15='Recom list'!$C$2,'Recom list'!H11, (IF(Recommendations!N15='Recom list'!$C$3, "None"))))) -> - Expert technical assistance - Software developer
B16: =IFERROR(INDEX($I$10:$Q$26, SMALL(IF((INDEX($I$10:$N$26,,$C$3)=$C$4),MATCH(ROW($N$10:$N$26),ROW($N$10:$N$26)),""), ROWS($A$1:A8)), COLUMNS($A$3:A9)), " ") -> Resources | C16: =IFERROR(INDEX($I$10:$Q$26, SMALL(IF((INDEX($I$10:$N$26,,$C$3)=$C$4),MATCH(ROW($N$10:$N$26),ROW($N$10:$N$26)),""), ROWS($A$1:B8)), COLUMNS($A$3:B9))," ") -> Other resources | D16: =IFERROR(INDEX($I$10:$Q$26, SMALL(IF((INDEX($I$10:$N$26,,$C$3)=$C$4),MATCH(ROW($N$10:$N$26),ROW($N$10:$N$26)),""), ROWS($A$1:G8)), COLUMNS($A$3:G9))," ") -> Assess what tools and other resources are needed for effective compliance enforcement, secure funding for and obtain the needed tools and resources. | E16: =IFERROR(INDEX($I$10:$Q$26, SMALL(IF((INDEX($I$10:$N$26,,$C$3)=$C$4),MATCH(ROW($N$10:$N$26),ROW($N$10:$N$26)),""), ROWS($A$1:H8)), COLUMNS($A$1:H8))," ") -> Medium/High | F16: =IFERROR(INDEX($I$10:$Q$26, SMALL(IF((INDEX($I$10:$N$26,,$C$3)=$C$4),MATCH(ROW($N$10:$N$26),ROW($N$10:$N$26)),""), ROWS($A$1:I8)), COLUMNS($A$1:I8))," ") -> - | I16: Resources | J16: Access to testing | K16: ='II - Resources'!H40 -> 0 | L16: ='II - Resources'!I40 -> 0.125 | M16: 1 | N16: =IF(M16=0,'Recom list'!$C$3, IF(M16<0.4,'Recom list'!$C$2, IF(M16>=0.4,'Recom list'!$C$1, "Error"))) -> Key Priority | O16: =IF(N16='Recom list'!$C$1,'Recom list'!C12, (IF(Recommendations!N16='Recom list'!$C$2,'Recom list'!F12, (IF(Recommendations!N16='Recom list'!$C$3, "None"))))) -> Identify existing independent testing facilities in country/region/outside region for testing products. Alternatively, when financially viable, build national testing lab. | P16: =IF(N16='Recom list'!$C$1,'Recom list'!D12, (IF(Recommendations!N16='Recom list'!$C$2,'Recom list'!G12, (IF(Recommendations!N16='Recom list'!$C$3, "None"))))) -> Low/High | Q16: =IF(N16='Recom list'!$C$1,'Recom list'!E12, (IF(Recommendations!N16='Recom list'!$C$2,'Recom list'!H12, (IF(Recommendations!N16='Recom list'!$C$3, "None"))))) -> - Lab equipment provider and expert technical assistance (establishing Lab)
B17: =IFERROR(INDEX($I$10:$Q$26, SMALL(IF((INDEX($I$10:$N$26,,$C$3)=$C$4),MATCH(ROW($N$10:$N$26),ROW($N$10:$N$26)),""), ROWS($A$1:A9)), COLUMNS($A$3:A10)), " ") -> Resources | C17: =IFERROR(INDEX($I$10:$Q$26, SMALL(IF((INDEX($I$10:$N$26,,$C$3)=$C$4),MATCH(ROW($N$10:$N$26),ROW($N$10:$N$26)),""), ROWS($A$1:B9)), COLUMNS($A$3:B10))," ") -> Budget/Funding | D17: =IFERROR(INDEX($I$10:$Q$26, SMALL(IF((INDEX($I$10:$N$26,,$C$3)=$C$4),MATCH(ROW($N$10:$N$26),ROW($N$10:$N$26)),""), ROWS($A$1:G9)), COLUMNS($A$3:G10))," ") -> Secure sustainable funding that is appropriate for country's policy compliance enforcement. | E17: =IFERROR(INDEX($I$10:$Q$26, SMALL(IF((INDEX($I$10:$N$26,,$C$3)=$C$4),MATCH(ROW($N$10:$N$26),ROW($N$10:$N$26)),""), ROWS($A$1:H9)), COLUMNS($A$1:H9))," ") -> - | F17: =IFERROR(INDEX($I$10:$Q$26, SMALL(IF((INDEX($I$10:$N$26,,$C$3)=$C$4),MATCH(ROW($N$10:$N$26),ROW($N$10:$N$26)),""), ROWS($A$1:I9)), COLUMNS($A$1:I9))," ") -> - | I17: Resources | J17: Other resources | K17: ='II - Resources'!H41 -> 0 | L17: ='II - Resources'!I41 -> 0.0625 | M17: 1 | N17: =IF(M17=0,'Recom list'!$C$3, IF(M17<0.4,'Recom list'!$C$2, IF(M17>=0.4,'Recom list'!$C$1, "Error"))) -> Key Priority | O17: =IF(N17='Recom list'!$C$1,'Recom list'!C13, (IF(Recommendations!N17='Recom list'!$C$2,'Recom list'!F13, (IF(Recommendations!N17='Recom list'!$C$3, "None"))))) -> Assess what tools and other resources are needed for effective compliance enforcement, secure funding for and obtain the needed tools and resources. | P17: =IF(N17='Recom list'!$C$1,'Recom list'!D13, (IF(Recommendations!N17='Recom list'!$C$2,'Recom list'!G13, (IF(Recommendations!N17='Recom list'!$C$3, "None"))))) -> Medium/High | Q17: =IF(N17='Recom list'!$C$1,'Recom list'!E13, (IF(Recommendations!N17='Recom list'!$C$2,'Recom list'!H13, (IF(Recommendations!N17='Recom list'!$C$3, "None"))))) -> -
B18: =IFERROR(INDEX($I$10:$Q$26, SMALL(IF((INDEX($I$10:$N$26,,$C$3)=$C$4),MATCH(ROW($N$10:$N$26),ROW($N$10:$N$26)),""), ROWS($A$1:A10)), COLUMNS($A$3:A11)), " ") -> Processes - Certification & Registration | C18: =IFERROR(INDEX($I$10:$Q$26, SMALL(IF((INDEX($I$10:$N$26,,$C$3)=$C$4),MATCH(ROW($N$10:$N$26),ROW($N$10:$N$26)),""), ROWS($A$1:B10)), COLUMNS($A$3:B11))," ") -> Product certification and registration | D18: =IFERROR(INDEX($I$10:$Q$26, SMALL(IF((INDEX($I$10:$N$26,,$C$3)=$C$4),MATCH(ROW($N$10:$N$26),ROW($N$10:$N$26)),""), ROWS($A$1:G10)), COLUMNS($A$3:G11))," ") -> Set up certification and regsitration processes that minimize the non-compliant products entering the country including accepting test reports only from independent accredited labs and certified by independent certification bodies/government agencies. | E18: =IFERROR(INDEX($I$10:$Q$26, SMALL(IF((INDEX($I$10:$N$26,,$C$3)=$C$4),MATCH(ROW($N$10:$N$26),ROW($N$10:$N$26)),""), ROWS($A$1:H10)), COLUMNS($A$1:H10))," ") -> Medium/High | F18: =IFERROR(INDEX($I$10:$Q$26, SMALL(IF((INDEX($I$10:$N$26,,$C$3)=$C$4),MATCH(ROW($N$10:$N$26),ROW($N$10:$N$26)),""), ROWS($A$1:I10)), COLUMNS($A$1:I10))," ") -> - Relevant government agency(-ies) - Expert technical assistance | I18: Resources | J18: ='II - Resources'!A18 -> Budget/Funding | K18: ='II - Resources'!H42 -> 0 | L18: ='II - Resources'!I42 -> 0.1875 | M18: 1 | N18: =IF(M18=0,'Recom list'!$C$3, IF(M18<0.4,'Recom list'!$C$2, IF(M18>=0.4,'Recom list'!$C$1, "Error"))) -> Key Priority | O18: =IF(N18='Recom list'!$C$1,'Recom list'!C14, (IF(Recommendations!N18='Recom list'!$C$2,'Recom list'!F14, (IF(Recommendations!N18='Recom list'!$C$3, "None"))))) -> Secure sustainable funding that is appropriate for country's policy compliance enforcement. | P18: =IF(N18='Recom list'!$C$1,'Recom list'!D14, (IF(Recommendations!N18='Recom list'!$C$2,'Recom list'!G14, (IF(Recommendations!N18='Recom list'!$C$3, "None"))))) -> - | Q18: =IF(N18='Recom list'!$C$1,'Recom list'!E14, (IF(Recommendations!N18='Recom list'!$C$2,'Recom list'!H14, (IF(Recommendations!N18='Recom list'!$C$3, "None"))))) -> -
B19: =IFERROR(INDEX($I$10:$Q$26, SMALL(IF((INDEX($I$10:$N$26,,$C$3)=$C$4),MATCH(ROW($N$10:$N$26),ROW($N$10:$N$26)),""), ROWS($A$1:A11)), COLUMNS($A$3:A12)), " ") -> Processes - Certification & Registration | C19: =IFERROR(INDEX($I$10:$Q$26, SMALL(IF((INDEX($I$10:$N$26,,$C$3)=$C$4),MATCH(ROW($N$10:$N$26),ROW($N$10:$N$26)),""), ROWS($A$1:B11)), COLUMNS($A$3:B12))," ") -> Customs check | D19: =IFERROR(INDEX($I$10:$Q$26, SMALL(IF((INDEX($I$10:$N$26,,$C$3)=$C$4),MATCH(ROW($N$10:$N$26),ROW($N$10:$N$26)),""), ROWS($A$1:G11)), COLUMNS($A$3:G12))," ") -> Set up collaboration mechanism with Customs (or equivalent) to check product compliance at the port of entry to prevent non-compliant products from entering the country. | E19: =IFERROR(INDEX($I$10:$Q$26, SMALL(IF((INDEX($I$10:$N$26,,$C$3)=$C$4),MATCH(ROW($N$10:$N$26),ROW($N$10:$N$26)),""), ROWS($A$1:H11)), COLUMNS($A$1:H11))," ") -> Medium | F19: =IFERROR(INDEX($I$10:$Q$26, SMALL(IF((INDEX($I$10:$N$26,,$C$3)=$C$4),MATCH(ROW($N$10:$N$26),ROW($N$10:$N$26)),""), ROWS($A$1:I11)), COLUMNS($A$1:I11))," ") -> - Relevant government agency(-ies) - Expert technical assistance | I19: =$J$5 -> Processes - Certification & Registration | J19: ='III - Compliance Processes'!E82 -> Product certification and registration | K19: ='III - Compliance Processes'!H82 -> 0 | L19: ='III - Compliance Processes'!I82 -> 0.6363636364 | M19: 1 | N19: =IF(M19=0,'Recom list'!$C$3, IF(M19<0.4,'Recom list'!$C$2, IF(M19>=0.4,'Recom list'!$C$1, "Error"))) -> Key Priority | O19: =IF(N19='Recom list'!$C$1,'Recom list'!C15, (IF(Recommendations!N19='Recom list'!$C$2,'Recom list'!F15, (IF(Recommendations!N19='Recom list'!$C$3, "None"))))) -> Set up certification and regsitration processes that minimize the non-compliant products entering the country including accepting test reports only from independent accredited labs and certified by independent certification bodies/government agencies. | P19: =IF(N19='Recom list'!$C$1,'Recom list'!D15, (IF(Recommendations!N19='Recom list'!$C$2,'Recom list'!G15, (IF(Recommendations!N19='Recom list'!$C$3, "None"))))) -> Medium/High | Q19: =IF(N19='Recom list'!$C$1,'Recom list'!E15, (IF(Recommendations!N19='Recom list'!$C$2,'Recom list'!H15, (IF(Recommendations!N19='Recom list'!$C$3, "None"))))) -> - Relevant government agency(-ies) - Expert technical assistance
B20: =IFERROR(INDEX($I$10:$Q$26, SMALL(IF((INDEX($I$10:$N$26,,$C$3)=$C$4),MATCH(ROW($N$10:$N$26),ROW($N$10:$N$26)),""), ROWS($A$1:A12)), COLUMNS($A$3:A13)), " ") -> Processes - Market Surveillance & Enforcement | C20: =IFERROR(INDEX($I$10:$Q$26, SMALL(IF((INDEX($I$10:$N$26,,$C$3)=$C$4),MATCH(ROW($N$10:$N$26),ROW($N$10:$N$26)),""), ROWS($A$1:B12)), COLUMNS($A$3:B13))," ") -> Market inspections | D20: =IFERROR(INDEX($I$10:$Q$26, SMALL(IF((INDEX($I$10:$N$26,,$C$3)=$C$4),MATCH(ROW($N$10:$N$26),ROW($N$10:$N$26)),""), ROWS($A$1:G12)), COLUMNS($A$3:G13))," ") -> Develop plan for surveilling product market. Select budget- and market-appropriate monitoring activities to effectively identify suspicious and non-compliant products. | E20: =IFERROR(INDEX($I$10:$Q$26, SMALL(IF((INDEX($I$10:$N$26,,$C$3)=$C$4),MATCH(ROW($N$10:$N$26),ROW($N$10:$N$26)),""), ROWS($A$1:H12)), COLUMNS($A$1:H12))," ") -> Medium/High | F20: =IFERROR(INDEX($I$10:$Q$26, SMALL(IF((INDEX($I$10:$N$26,,$C$3)=$C$4),MATCH(ROW($N$10:$N$26),ROW($N$10:$N$26)),""), ROWS($A$1:I12)), COLUMNS($A$1:I12))," ") -> - Relevant government agency(-ies) - Expert technical assistance | I20: =$J$5 -> Processes - Certification & Registration | J20: ='III - Compliance Processes'!E83 -> Customs check | K20: ='III - Compliance Processes'!H83 -> 0 | L20: ='III - Compliance Processes'!I83 -> 0.3636363636 | M20: 1 | N20: =IF(M20=0,'Recom list'!$C$3, IF(M20<0.4,'Recom list'!$C$2, IF(M20>=0.4,'Recom list'!$C$1, "Error"))) -> Key Priority | O20: =IF(N20='Recom list'!$C$1,'Recom list'!C16, (IF(Recommendations!N20='Recom list'!$C$2,'Recom list'!F16, (IF(Recommendations!N20='Recom list'!$C$3, "None"))))) -> Set up collaboration mechanism with Customs (or equivalent) to check product compliance at the port of entry to prevent non-compliant products from entering the country. | P20: =IF(N20='Recom list'!$C$1,'Recom list'!D16, (IF(Recommendations!N20='Recom list'!$C$2,'Recom list'!G16, (IF(Recommendations!N20='Recom list'!$C$3, "None"))))) -> Medium | Q20: =IF(N20='Recom list'!$C$1,'Recom list'!E16, (IF(Recommendations!N20='Recom list'!$C$2,'Recom list'!H16, (IF(Recommendations!N20='Recom list'!$C$3, "None"))))) -> - Relevant government agency(-ies) - Expert technical assistance
B21: =IFERROR(INDEX($I$10:$Q$26, SMALL(IF((INDEX($I$10:$N$26,,$C$3)=$C$4),MATCH(ROW($N$10:$N$26),ROW($N$10:$N$26)),""), ROWS($A$1:A13)), COLUMNS($A$3:A14)), " ") -> Processes - Market Surveillance & Enforcement | C21: =IFERROR(INDEX($I$10:$Q$26, SMALL(IF((INDEX($I$10:$N$26,,$C$3)=$C$4),MATCH(ROW($N$10:$N$26),ROW($N$10:$N$26)),""), ROWS($A$1:B13)), COLUMNS($A$3:B14))," ") -> Verification testing | D21: =IFERROR(INDEX($I$10:$Q$26, SMALL(IF((INDEX($I$10:$N$26,,$C$3)=$C$4),MATCH(ROW($N$10:$N$26),ROW($N$10:$N$26)),""), ROWS($A$1:G13)), COLUMNS($A$3:G14))," ") -> Budget permitted, conduct verification testing as per best practices (e.g. target the high-risk products) to ensure the accuracy and reliability of testing results. If the in-coutry test lab is not available, seek out to outsource testing to test labs outside the country. | E21: =IFERROR(INDEX($I$10:$Q$26, SMALL(IF((INDEX($I$10:$N$26,,$C$3)=$C$4),MATCH(ROW($N$10:$N$26),ROW($N$10:$N$26)),""), ROWS($A$1:H13)), COLUMNS($A$1:H13))," ") -> Medium/High | F21: =IFERROR(INDEX($I$10:$Q$26, SMALL(IF((INDEX($I$10:$N$26,,$C$3)=$C$4),MATCH(ROW($N$10:$N$26),ROW($N$10:$N$26)),""), ROWS($A$1:I13)), COLUMNS($A$1:I13))," ") -> - Relevant government agency(-ies) | I21: =$J$6 -> Processes - Market Surveillance & Enforcement | J21: ='III - Compliance Processes'!E85 -> Market inspections | K21: ='III - Compliance Processes'!H85 -> 0 | L21: ='III - Compliance Processes'!I85 -> 0.5 | M21: 1 | N21: =IF(M21=0,'Recom list'!$C$3, IF(M21<0.4,'Recom list'!$C$2, IF(M21>=0.4,'Recom list'!$C$1, "Error"))) -> Key Priority | O21: =IF(N21='Recom list'!$C$1,'Recom list'!C17, (IF(Recommendations!N21='Recom list'!$C$2,'Recom list'!F17, (IF(Recommendations!N21='Recom list'!$C$3, "None"))))) -> Develop plan for surveilling product market. Select budget- and market-appropriate monitoring activities to effectively identify suspicious and non-compliant products. | P21: =IF(N21='Recom list'!$C$1,'Recom list'!D17, (IF(Recommendations!N21='Recom list'!$C$2,'Recom list'!G17, (IF(Recommendations!N21='Recom list'!$C$3, "None"))))) -> Medium/High | Q21: =IF(N21='Recom list'!$C$1,'Recom list'!E17, (IF(Recommendations!N21='Recom list'!$C$2,'Recom list'!H17, (IF(Recommendations!N21='Recom list'!$C$3, "None"))))) -> - Relevant government agency(-ies) - Expert technical assistance
B22: =IFERROR(INDEX($I$10:$Q$26, SMALL(IF((INDEX($I$10:$N$26,,$C$3)=$C$4),MATCH(ROW($N$10:$N$26),ROW($N$10:$N$26)),""), ROWS($A$1:A14)), COLUMNS($A$3:A15)), " ") -> Processes - Market Surveillance & Enforcement | C22: =IFERROR(INDEX($I$10:$Q$26, SMALL(IF((INDEX($I$10:$N$26,,$C$3)=$C$4),MATCH(ROW($N$10:$N$26),ROW($N$10:$N$26)),""), ROWS($A$1:B14)), COLUMNS($A$3:B15))," ") -> Record keeping | D22: =IFERROR(INDEX($I$10:$Q$26, SMALL(IF((INDEX($I$10:$N$26,,$C$3)=$C$4),MATCH(ROW($N$10:$N$26),ROW($N$10:$N$26)),""), ROWS($A$1:G14)), COLUMNS($A$3:G15))," ") -> Set up procedures to record and keep the records from market surveillance activities, and utilize them to inform enforcement actions and future market surveillance. | E22: =IFERROR(INDEX($I$10:$Q$26, SMALL(IF((INDEX($I$10:$N$26,,$C$3)=$C$4),MATCH(ROW($N$10:$N$26),ROW($N$10:$N$26)),""), ROWS($A$1:H14)), COLUMNS($A$1:H14))," ") -> Low | F22: =IFERROR(INDEX($I$10:$Q$26, SMALL(IF((INDEX($I$10:$N$26,,$C$3)=$C$4),MATCH(ROW($N$10:$N$26),ROW($N$10:$N$26)),""), ROWS($A$1:I14)), COLUMNS($A$1:I14))," ") -> - Relevant government agency(-ies) | I22: =$J$6 -> Processes - Market Surveillance & Enforcement | J22: ='III - Compliance Processes'!E86 -> Verification testing | K22: ='III - Compliance Processes'!H86 -> 0 | L22: ='III - Compliance Processes'!I86 -> 0.1875 | M22: 1 | N22: =IF(M22=0,'Recom list'!$C$3, IF(M22<0.4,'Recom list'!$C$2, IF(M22>=0.4,'Recom list'!$C$1, "Error"))) -> Key Priority | O22: =IF(N22='Recom list'!$C$1,'Recom list'!C18, (IF(Recommendations!N22='Recom list'!$C$2,'Recom list'!F18, (IF(Recommendations!N22='Recom list'!$C$3, "None"))))) -> Budget permitted, conduct verification testing as per best practices (e.g. target the high-risk products) to ensure the accuracy and reliability of testing results. If the in-coutry test lab is not available, seek out to outsource testing to test labs outside the country. | P22: =IF(N22='Recom list'!$C$1,'Recom list'!D18, (IF(Recommendations!N22='Recom list'!$C$2,'Recom list'!G18, (IF(Recommendations!N22='Recom list'!$C$3, "None"))))) -> Medium/High | Q22: =IF(N22='Recom list'!$C$1,'Recom list'!E18, (IF(Recommendations!N22='Recom list'!$C$2,'Recom list'!H18, (IF(Recommendations!N22='Recom list'!$C$3, "None"))))) -> - Relevant government agency(-ies)
B23: =IFERROR(INDEX($I$10:$Q$26, SMALL(IF((INDEX($I$10:$N$26,,$C$3)=$C$4),MATCH(ROW($N$10:$N$26),ROW($N$10:$N$26)),""), ROWS($A$1:A15)), COLUMNS($A$3:A16)), " ") -> Processes - Market Surveillance & Enforcement | C23: =IFERROR(INDEX($I$10:$Q$26, SMALL(IF((INDEX($I$10:$N$26,,$C$3)=$C$4),MATCH(ROW($N$10:$N$26),ROW($N$10:$N$26)),""), ROWS($A$1:B15)), COLUMNS($A$3:B16))," ") -> Enforcement | D23: =IFERROR(INDEX($I$10:$Q$26, SMALL(IF((INDEX($I$10:$N$26,,$C$3)=$C$4),MATCH(ROW($N$10:$N$26),ROW($N$10:$N$26)),""), ROWS($A$1:G15)), COLUMNS($A$3:G16))," ") -> Set up procedures and processes for taking appropriate and proportionate enforcement actions to rectify non-compliance. | E23: =IFERROR(INDEX($I$10:$Q$26, SMALL(IF((INDEX($I$10:$N$26,,$C$3)=$C$4),MATCH(ROW($N$10:$N$26),ROW($N$10:$N$26)),""), ROWS($A$1:H15)), COLUMNS($A$1:H15))," ") -> Low | F23: =IFERROR(INDEX($I$10:$Q$26, SMALL(IF((INDEX($I$10:$N$26,,$C$3)=$C$4),MATCH(ROW($N$10:$N$26),ROW($N$10:$N$26)),""), ROWS($A$1:I15)), COLUMNS($A$1:I15))," ") -> - Relevant government agency(-ies) | I23: =$J$6 -> Processes - Market Surveillance & Enforcement | J23: ='III - Compliance Processes'!E87 -> Record keeping | K23: ='III - Compliance Processes'!H87 -> 0 | L23: ='III - Compliance Processes'!I87 -> 0.0625 | M23: 1 | N23: =IF(M23=0,'Recom list'!$C$3, IF(M23<0.4,'Recom list'!$C$2, IF(M23>=0.4,'Recom list'!$C$1, "Error"))) -> Key Priority | O23: =IF(N23='Recom list'!$C$1,'Recom list'!C19, (IF(Recommendations!N23='Recom list'!$C$2,'Recom list'!F19, (IF(Recommendations!N23='Recom list'!$C$3, "None"))))) -> Set up procedures to record and keep the records from market surveillance activities, and utilize them to inform enforcement actions and future market surveillance. | P23: =IF(N23='Recom list'!$C$1,'Recom list'!D19, (IF(Recommendations!N23='Recom list'!$C$2,'Recom list'!G19, (IF(Recommendations!N23='Recom list'!$C$3, "None"))))) -> Low | Q23: =IF(N23='Recom list'!$C$1,'Recom list'!E19, (IF(Recommendations!N23='Recom list'!$C$2,'Recom list'!H19, (IF(Recommendations!N23='Recom list'!$C$3, "None"))))) -> - Relevant government agency(-ies)
B24: =IFERROR(INDEX($I$10:$Q$26, SMALL(IF((INDEX($I$10:$N$26,,$C$3)=$C$4),MATCH(ROW($N$10:$N$26),ROW($N$10:$N$26)),""), ROWS($A$1:A16)), COLUMNS($A$3:A17)), " ") -> Compliance Communication | C24: =IFERROR(INDEX($I$10:$Q$26, SMALL(IF((INDEX($I$10:$N$26,,$C$3)=$C$4),MATCH(ROW($N$10:$N$26),ROW($N$10:$N$26)),""), ROWS($A$1:B16)), COLUMNS($A$3:B17))," ") -> Communicating requirements | D24: =IFERROR(INDEX($I$10:$Q$26, SMALL(IF((INDEX($I$10:$N$26,,$C$3)=$C$4),MATCH(ROW($N$10:$N$26),ROW($N$10:$N$26)),""), ROWS($A$1:G16)), COLUMNS($A$3:G17))," ") -> Identify and set up appropriate approaches to communicate compliance requirements and procedures to improve compliance. | E24: =IFERROR(INDEX($I$10:$Q$26, SMALL(IF((INDEX($I$10:$N$26,,$C$3)=$C$4),MATCH(ROW($N$10:$N$26),ROW($N$10:$N$26)),""), ROWS($A$1:H16)), COLUMNS($A$1:H16))," ") -> Low/Medium | F24: =IFERROR(INDEX($I$10:$Q$26, SMALL(IF((INDEX($I$10:$N$26,,$C$3)=$C$4),MATCH(ROW($N$10:$N$26),ROW($N$10:$N$26)),""), ROWS($A$1:I16)), COLUMNS($A$1:I16))," ") -> - Relevant government agency(-ies) - Expert technical assistance - Associations, other Organizations | I24: =$J$6 -> Processes - Market Surveillance & Enforcement | J24: ='III - Compliance Processes'!E88 -> Enforcement | K24: ='III - Compliance Processes'!H88 -> 0 | L24: ='III - Compliance Processes'!I88 -> 0.25 | M24: 1 | N24: =IF(M24=0,'Recom list'!$C$3, IF(M24<0.4,'Recom list'!$C$2, IF(M24>=0.4,'Recom list'!$C$1, "Error"))) -> Key Priority | O24: =IF(N24='Recom list'!$C$1,'Recom list'!C20, (IF(Recommendations!N24='Recom list'!$C$2,'Recom list'!F20, (IF(Recommendations!N24='Recom list'!$C$3, "None"))))) -> Set up procedures and processes for taking appropriate and proportionate enforcement actions to rectify non-compliance. | P24: =IF(N24='Recom list'!$C$1,'Recom list'!D20, (IF(Recommendations!N24='Recom list'!$C$2,'Recom list'!G20, (IF(Recommendations!N24='Recom list'!$C$3, "None"))))) -> Low | Q24: =IF(N24='Recom list'!$C$1,'Recom list'!E20, (IF(Recommendations!N24='Recom list'!$C$2,'Recom list'!H20, (IF(Recommendations!N24='Recom list'!$C$3, "None"))))) -> - Relevant government agency(-ies)
B25: =IFERROR(INDEX($I$10:$Q$26, SMALL(IF((INDEX($I$10:$N$26,,$C$3)=$C$4),MATCH(ROW($N$10:$N$26),ROW($N$10:$N$26)),""), ROWS($A$1:A17)), COLUMNS($A$3:A18)), " ") -> Compliance Communication | C25: =IFERROR(INDEX($I$10:$Q$26, SMALL(IF((INDEX($I$10:$N$26,,$C$3)=$C$4),MATCH(ROW($N$10:$N$26),ROW($N$10:$N$26)),""), ROWS($A$1:B17)), COLUMNS($A$3:B18))," ") -> Communicating non-compliance | D25: =IFERROR(INDEX($I$10:$Q$26, SMALL(IF((INDEX($I$10:$N$26,,$C$3)=$C$4),MATCH(ROW($N$10:$N$26),ROW($N$10:$N$26)),""), ROWS($A$1:G17)), COLUMNS($A$3:G18))," ") -> Establish country-relevant procedures to report market surveillance actions and non-compliance to stakeholders to deter future non-compliance. | E25: =IFERROR(INDEX($I$10:$Q$26, SMALL(IF((INDEX($I$10:$N$26,,$C$3)=$C$4),MATCH(ROW($N$10:$N$26),ROW($N$10:$N$26)),""), ROWS($A$1:H17)), COLUMNS($A$1:H17))," ") -> Low/Medium | F25: =IFERROR(INDEX($I$10:$Q$26, SMALL(IF((INDEX($I$10:$N$26,,$C$3)=$C$4),MATCH(ROW($N$10:$N$26),ROW($N$10:$N$26)),""), ROWS($A$1:I17)), COLUMNS($A$1:I17))," ") -> - Relevant government agency(-ies) | I25: =$J$7 -> Compliance Communication | J25: ='III - Compliance Processes'!E90 -> Communicating requirements | K25: ='III - Compliance Processes'!H90 -> 0 | L25: ='III - Compliance Processes'!I90 -> 0.8 | M25: 1 | N25: =IF(M25=0,'Recom list'!$C$3, IF(M25<0.4,'Recom list'!$C$2, IF(M25>=0.4,'Recom list'!$C$1, "Error"))) -> Key Priority | O25: =IF(N25='Recom list'!$C$1,'Recom list'!C21, (IF(Recommendations!N25='Recom list'!$C$2,'Recom list'!F21, (IF(Recommendations!N25='Recom list'!$C$3, "None"))))) -> Identify and set up appropriate approaches to communicate compliance requirements and procedures to improve compliance. | P25: =IF(N25='Recom list'!$C$1,'Recom list'!D21, (IF(Recommendations!N25='Recom list'!$C$2,'Recom list'!H21, (IF(Recommendations!N25='Recom list'!$C$3, "None"))))) -> Low/Medium | Q25: =IF(N25='Recom list'!$C$1,'Recom list'!E21, (IF(Recommendations!N25='Recom list'!$C$2,'Recom list'!#REF!, (IF(Recommendations!N25='Recom list'!$C$3, "None"))))) -> - Relevant government agency(-ies) - Expert technical assistance - Associations, other Organizations
I26: =$J$7 -> Compliance Communication | J26: ='III - Compliance Processes'!E91 -> Communicating non-compliance | K26: ='III - Compliance Processes'!H91 -> 0 | L26: ='III - Compliance Processes'!I91 -> 0.2 | M26: 1 | N26: =IF(M26=0,'Recom list'!$C$3, IF(M26<0.4,'Recom list'!$C$2, IF(M26>=0.4,'Recom list'!$C$1, "Error"))) -> Key Priority | O26: =IF(N26='Recom list'!$C$1,'Recom list'!C22, (IF(Recommendations!N26='Recom list'!$C$2,'Recom list'!F22, (IF(Recommendations!N26='Recom list'!$C$3, "None"))))) -> Establish country-relevant procedures to report market surveillance actions and non-compliance to stakeholders to deter future non-compliance. | P26: =IF(N26='Recom list'!$C$1,'Recom list'!D22, (IF(Recommendations!N26='Recom list'!$C$2,'Recom list'!H22, (IF(Recommendations!N26='Recom list'!$C$3, "None"))))) -> Low/Medium | Q26: =IF(N26='Recom list'!$C$1,'Recom list'!E22, (IF(Recommendations!N26='Recom list'!$C$2,'Recom list'!#REF!, (IF(Recommendations!N26='Recom list'!$C$3, "None"))))) -> - Relevant government agency(-ies)
I28: Regional collaboration????

Sheet I - Regulation
A1: REGULATORY FRAMEWORK | D1: INDICATOR SCORE (out of 1)
D2: =IF(C9='Reg list'!A5,0,(SUM(F14:F24)-0)/(SUM(E14:E24)-0)) -> 0
A3: This indicator evaluates the status of country's regulations and provisions for compliance processes, i.e. whether regulations cover all necessary provisions, whether the country has adminstrative guidelines to complement the regulations, etc.
B5: Reset response cells? | D5: Please select "Yes" each time you would like to clear resposes
A7: Initial Assessment
A8: Question I | C8: ='Reg list'!A2 -> Does the country have regulation (or provisions) to implement and enforce product energy efficiency or quality policies, including offences, penalties, etc.?
A9: Response - select applicable option
A10: Next Step | C10: =IF(C9='Reg list'!A3,'Reg list'!C3,(IF(C9='Reg list'!A4,'Reg list'!C4,(IF('I - Regulation'!C9='Reg list'!A5,'Reg list'!C5," "))))) -> 
A12: Detailed Assessment of Regulatory Framework for Implementing Efficiency Policies for Products
A13: Regulations - Key Provisions | D13: Response - select applicable option | E13: Max score | F13: Question Score | G13: Adjusted score
A14: I.1 | B14: =IF(C9='Reg list'!A5, "Not applicable", 'Reg list'!A8) -> Does the regulation identify and define roles and responsibilities of key actors (i.e. regulator/enforcement authority, product manufacturer, retailer, etc. )? | E14: ='Reg list'!B9 -> 2 | F14: =IF(D14='Reg list'!A9,'Reg list'!B9,(IF(D14='Reg list'!A10,'Reg list'!B10,(IF(D14='Reg list'!A11,'Reg list'!B11,0))))) -> 0 | G14: =(F14-0)/(SUM($E$14:$E$24)-0) -> 0
A15: I.2 | B15: =IF(C9='Reg list'!A5, "Not applicable", 'Reg list'!C8) -> Does the regulation identify and define potential offences? | E15: ='Reg list'!D9 -> 2 | F15: =IF(D15='Reg list'!C9,'Reg list'!D9,(IF(D15='Reg list'!C10,'Reg list'!D10,(IF(D15='Reg list'!C11,'Reg list'!D11,0))))) -> 0 | G15: =(F15-0)/(SUM($E$14:$E$24)-0) -> 0
A16: I.3 | B16: =IF(C9='Reg list'!A5, "Not applicable", 'Reg list'!E8) -> Does the regulation provide a range of penalties or other enforcement actions for non-compliance? | E16: ='Reg list'!F9 -> 2 | F16: =IF(D16='Reg list'!E9,'Reg list'!F9,(IF(D16='Reg list'!E10,'Reg list'!F10,(IF(D16='Reg list'!E11,'Reg list'!F11,0))))) -> 0 | G16: =(F16-0)/(SUM($E$14:$E$24)-0) -> 0
A17: I.4 | B17: =IF(C9='Reg list'!A5, "Not applicable", 'Reg list'!G8) -> Does the regulation define manufacturer, importer, and retailer requirements? | E17: ='Reg list'!H9 -> 2 | F17: =IF(D16='Reg list'!G9,'Reg list'!H9,(IF(D16='Reg list'!G10,'Reg list'!H10,(IF(D16='Reg list'!G11,'Reg list'!H11,0))))) -> 0 | G17: =(F17-0)/(SUM($E$14:$E$24)-0) -> 0
A18: Regulations - Additional Provisions | D18: Response - select applicable option
A19: I.5 | B19: =IF(C9='Reg list'!A5,"Not applicable",'Reg list'!A14) -> What type of test report is required to prove the product is compliant with the standards? | E19: ='Reg list'!B15 -> 1 | F19: =IF('I - Regulation'!D19='Reg list'!A15,'Reg list'!B15,(IF('I - Regulation'!D19='Reg list'!A16,'Reg list'!B16,(IF('I - Regulation'!D19='Reg list'!A17,'Reg list'!B17,(IF('I - Regulation'!D19='Reg list'!A18,'Reg list'!B18,(IF('I - Regulation'!D19='Reg list'!A19,'Reg list'!B19,0))))))))) -> 0 | G19: =(F19-0)/(SUM($E$14:$E$24)-0) -> 0
A20: I.6 | B20: =IF(C9='Reg list'!A5, "Not applicable", 'Reg list'!C14) -> How are the product certified, to be authorized for sale on the market? | E20: ='Reg list'!D15 -> 1 | F20: =IF('I - Regulation'!D20='Reg list'!C15,'Reg list'!D15,(IF('I - Regulation'!D20='Reg list'!C16,'Reg list'!D16,(IF('I - Regulation'!D20='Reg list'!C17,'Reg list'!D17,0))))) -> 0 | G20: =(F20-0)/(SUM($E$14:$E$24)-0) -> 0
A21: I.7 | B21: =IF(C9='Reg list'!A5, "Not applicable", 'Reg list'!E14) -> Do products need to be registered in a national/regional product registry (database), before they can be sold on the market? | E21: ='Reg list'!F15 -> 1 | F21: =IF('I - Regulation'!D21='Reg list'!E15,'Reg list'!F15,(IF('I - Regulation'!D21='Reg list'!E16,'Reg list'!F16,(IF('I - Regulation'!D21='Reg list'!E17,'Reg list'!F17,0))))) -> 0 | G21: =(F21-0)/(SUM($E$14:$E$24)-0) -> 0
A22: I.8 | B22: =IF(C9='Reg list'!A5, "Not applicable", 'Reg list'!G14) -> Does the regulation define market surveillance powers for regulator/compliance authority? | E22: ='Reg list'!H15 -> 1 | F22: =IF(D22='Reg list'!G15,'Reg list'!H15,(IF(D22='Reg list'!G16,'Reg list'!H16,0))) -> 0 | G22: =(F22-0)/(SUM($E$14:$E$24)-0) -> 0
A23: Other - Administrative Guidelines | D23: Response - select applicable option
A24: I.9 | B24: =IF(C9='Reg list'!A5, "Not applicable", 'Reg list'!A22) -> Is any explanation on processes and requirements made available, in addition to the regulation, for example in the form of Administrative Guidelines (i.e. guidelines, FAQs, or standard operating procedures) that provide more detail and guidance on how to implement and comply with the policy? | E24: ='Reg list'!B23 -> 1 | F24: =IF(D24='Reg list'!A23,'Reg list'!B23,(IF(D24='Reg list'!A24,'Reg list'!B24,(IF(D24='Reg list'!A25,'Reg list'!B25,(IF(D24='Reg list'!A26,'Reg list'!B26,0))))))) -> 0 | G24: =(F24-0)/(SUM($E$14:$E$24)-0) -> 0
E25: =SUM(E14:E24) -> 13 | F25: =SUM(F14:F24) -> 0 | G25: =SUM(G14:G24) -> 0
A26: Next, please go to II-Resources indicator tab
E27: For recommendations
F28: Max score | G28: Question Score | H28: Adjusted score | I28: max adjusted score
E29: =A13 -> Regulations - Key Provisions | F29: =SUM(E14:E17) -> 8 | G29: =SUM(F14:F17) -> 0 | H29: =SUM(G14:G17) -> 0 | I29: =F29/$E$25 -> 0.6153846154
E30: =A18 -> Regulations - Additional Provisions | F30: =SUM(E19:E22) -> 4 | G30: =SUM(F19:F22) -> 0 | H30: =SUM(G19:G22) -> 0 | I30: =F30/$E$25 -> 0.3076923077
E31: =A23 -> Other - Administrative Guidelines | F31: =E24 -> 1 | G31: =F24 -> 0 | H31: =G24 -> 0 | I31: =F31/$E$25 -> 0.07692307692

Sheet II - Resources
A1: RESOURCES | D1: INDICATOR SCORE (out of 1)
D2: =IF('I - Regulation'!C9='Reg list'!A5,0,(SUM(F9:F20)-0)/(SUM(E9:E20)-0)) -> 0
A3: This indicator evaluates the status of your country's financial, human, and infrastructure resources for enforcing policy compliance, i.e. whether the program has sufficient staff, budget and access to testing facilities.
B5: Reset response cells? | D5: Please select "Yes" each time you would like to clear resposes
A7: Assessing Avaiablity of Required Resources for Implementing Efficiency Policies for Products
A8: Institutional Framework and Human Capital | D8: Response - select applicable option | E8: Max score | F8: Question Score | G8: Adjusted score
A9: II.1 | B9: =IF('I - Regulation'!C9='Reg list'!A5, "Not applicable", 'Res list'!A2) -> Has a Regulator been assigned responsibility for ensuring compliance with the regulations? | E9: ='Res list'!B3 -> 2 | F9: =IF(D9='Res list'!A2,'Res list'!B2,(IF(D9='Res list'!A3,'Res list'!B3,(IF(D9='Res list'!A4,'Res list'!B4,0))))) -> 0 | G9: =(F9-0)/(SUM($E$9:$E$20)-0) -> 0
A10: II.2 | B10: =IF('I - Regulation'!C9='Reg list'!A5, "Not applicable", 'Res list'!C2) -> Is the Regulator actively implementing all their assigned responsibilities (ie. conformity assessment, market surveillance, enforcement, reporting, etc.)? | E10: ='Res list'!D3 -> 2 | F10: =IF(D10='Res list'!C2,'Res list'!D2,(IF(D10='Res list'!C3,'Res list'!D3,(IF(D10='Res list'!C4,'Res list'!D4,0))))) -> 0 | G10: =(F10-0)/(SUM($E$9:$E$20)-0) -> 0
A11: II.3 | B11: =IF('I - Regulation'!C9='Reg list'!A5, "Not applicable", 'Res list'!E2) -> Have the roles and responsibilities been clearly defined and assigned between agencies if there is a need for their support for compliance processes? | E11: ='Res list'!F3 -> 1 | F11: =IF(D11='Res list'!E2,'Res list'!F2,(IF(D11='Res list'!E3,'Res list'!F3,(IF(D11='Res list'!E4,'Res list'!F4,0))))) -> 0 | G11: =(F11-0)/(SUM($E$9:$E$20)-0) -> 0
A12: II.4 | B12: =IF('I - Regulation'!C9='Reg list'!A5, "Not applicable", 'Res list'!G2) -> Is compliance program sufficiently staffed? | E12: ='Res list'!H3 -> 1 | F12: =IF(D12='Res list'!G3,'Res list'!H3,(IF(D12='Res list'!G4,'Res list'!H4,(IF(D12='Res list'!G5,'Res list'!H5,(IF(D12='Res list'!G6,'Res list'!H6,0))))))) -> 0 | G12: =(F12-0)/(SUM($E$9:$E$20)-0) -> 0
A13: II.5 | B13: =IF('I - Regulation'!C9='Reg list'!A5, "Not applicable", 'Res list'!I2) -> Is compliance staff trained, knowledgeable, and able to execute their duties? | E13: ='Res list'!J3 -> 1 | F13: =IF(D13='Res list'!I3,'Res list'!J3,(IF(D13='Res list'!I4,'Res list'!J4,(IF(D13='Res list'!I5,'Res list'!J5,0))))) -> 0 | G13: =(F13-0)/(SUM($E$9:$E$20)-0) -> 0
A14: Access to Infrastructure | D14: Response - select applicable option
A15: II.6 | B15: =IF('I - Regulation'!C9='Reg list'!A5, "Not applicable", 'Res list'!A8) -> Does the energy efficiency program use a product registration system (database)? | E15: ='Res list'!B9 -> 3 | F15: =IF(D15='Res list'!A9,'Res list'!B9,(IF(D15='Res list'!A10,'Res list'!B10,(IF(D15='Res list'!A11,'Res list'!B11,0))))) -> 0 | G15: =(F15-0)/(SUM($E$9:$E$20)-0) -> 0
A16: II.7 | B16: =IF('I - Regulation'!C9='Reg list'!A5, "Not applicable", 'Res list'!C8) -> Does the Regulator have access to test facilities, in-country or abroad, to conduct verification testing of products? | E16: ='Res list'!D9 -> 2 | F16: =IF(D16='Res list'!C9,'Res list'!D9,(IF(D16='Res list'!C10,'Res list'!D10,(IF(D16='Res list'!C11,'Res list'!D11,(IF(D16='Res list'!C12,'Res list'!D12,0))))))) -> 0 | G16: =(F16-0)/(SUM($E$9:$E$20)-0) -> 0
A17: II.8 | B17: =IF('I - Regulation'!C9='Reg list'!A5, "Not applicable", 'Res list'!E8) -> Does the team have the tools and physical resources they need to conduct compliance activities (e.g. computers, mobile phones, etc.)? | E17: ='Res list'!F9 -> 1 | F17: =IF(D17='Res list'!E9,'Res list'!F9,(IF(D17='Res list'!E10,'Res list'!F10,(IF(D17='Res list'!E11,'Res list'!F11,0))))) -> 0 | G17: =(F17-0)/(SUM($E$9:$E$20)-0) -> 0
A18: Budget/Funding | D18: Response - select applicable option
A19: II.9 | B19: =IF('I - Regulation'!C9='Reg list'!A5, "Not applicable", 'Res list'!A14) -> Is there sufficient funding to conduct compliance activities? | E19: ='Res list'!B15 -> 1 | F19: =IF(D19='Res list'!A15,'Res list'!B15,(IF(D19='Res list'!A16,'Res list'!B16,(IF(D19='Res list'!A17,'Res list'!B17,(IF(D19='Res list'!A18,'Res list'!B18,0))))))) -> 0 | G19: =(F19-0)/(SUM($E$9:$E$20)-0) -> 0
A20: II.10 | B20: =IF('I - Regulation'!C9='Reg list'!A5, "Not applicable", 'Res list'!C14) -> How is the energy efficiency program implementation and enforcement funded? | E20: ='Res list'!D15 -> 2 | F20: =IF(D20='Res list'!C15,'Res list'!D15,(IF(D20='Res list'!C16,'Res list'!D16,(IF(D20='Res list'!C17,'Res list'!D17,(IF(D20='Res list'!C18,'Res list'!D18,(IF(D20='Res list'!C19,'Res list'!D19,0))))))))) -> 0 | G20: =(F20-0)/(SUM($E$9:$E$20)-0) -> 0
E21: =SUM(E9:E20) -> 16 | F21: =SUM(F9:F20) -> 0 | G21: =SUM(G9:G20) -> 0
A22: Next, please go to III-Compliance processes indicator tab
F23: Max score | G23: Question Score | H23: Adjusted score | I23: max adjusted score
E24: =A8 -> Institutional Framework and Human Capital | F24: =SUM(E9:E13) -> 7 | G24: =SUM(F9:F13) -> 0 | H24: =SUM(G9:G13) -> 0 | I24: =F24/E21 -> 0.4375
E25: =A14 -> Access to Infrastructure | F25: =SUM(E15:E17) -> 6 | G25: =SUM(F15:F17) -> 0 | H25: =SUM(G15:G17) -> 0 | I25: =F25/E21 -> 0.375
E26: =A18 -> Budget/Funding | F26: =SUM(E19:E20) -> 3 | G26: =SUM(F19:F20) -> 0 | H26: =SUM(G19:G20) -> 0 | I26: =F26/E21 -> 0.1875
E28: For graph
F29: adjusted score | G29: gap
E30: =A8 -> Institutional Framework and Human Capital | F30: =H24/I24 -> 0 | G30: =1-F30 -> 1
E31: =A14 -> Access to Infrastructure | F31: =H25/I25 -> 0 | G31: =1-F31 -> 1
E32: =A18 -> Budget/Funding | F32: =H26/I26 -> 0 | G32: =1-F32 -> 1
E33: Total Resources | F33: =SUM(H24:H26)/SUM(I24:I26) -> 0 | G33: =1-F33 -> 1
E35: For recommendations
F36: Max score | G36: Question Score | H36: Adjusted score | I36: max adjusted score
E37: =Recommendations!J13 -> Institutional Collaboration | F37: =SUM(E9:E11) -> 5 | G37: =SUM(F9:F11) -> 0 | H37: =SUM(G9:G11) -> 0 | I37: =F37/$F$43 -> 0.3125
E38: =Recommendations!J14 -> Human Capital | F38: =SUM(E12:E13) -> 2 | G38: =SUM(F12:F13) -> 0 | H38: =SUM(G12:G13) -> 0 | I38: 0.125
E39: =Recommendations!J15 -> Product Registration System | F39: =E15 -> 3 | G39: =F15 -> 0 | H39: 0 | I39: 0.1875
E40: =Recommendations!J16 -> Access to testing | F40: =E16 -> 2 | G40: 0 | H40: 0 | I40: 0.125
E41: Other resources | F41: =E17 -> 1 | G41: 0 | H41: 0 | I41: 0.0625
E42: =Recommendations!J18 -> Budget/Funding | F42: =E19+E20 -> 3 | G42: =F19+F20 -> 0 | H42: 0 | I42: 0.1875
E43: Total | F43: =SUM(F37:F42) -> 16 | G43: =SUM(G37:G42) -> 0 | H43: =SUM(H37:H42) -> 0 | I43: =SUM(I37:I42) -> 1

Sheet III - Compliance Processes
A1: COMPLIANCE PROCESSES
A3: This indicator evaluates the status of your country's compliance processes, i.e. product registration, market monitoring activities, etc.
D5: INDICATOR SCORE
C6: Certification & Registration | D6: =IF('I - Regulation'!C9='Reg list'!A5,0,IF(C14='Compl processes list'!A5,0,(SUM(F19:F26)-0)/(SUM(E19:E26)-0))) -> 0
C7: Market Surveillance and Enforcement | D7: =IF('I - Regulation'!C9='Reg list'!A5,0,IF(C30='Compl processes list'!E5,0,G56)) -> 0
C8: Compliance Communication | D8: =IF('I - Regulation'!C9='Reg list'!A5,0,IF(C58='Compl processes list'!I5,0,(SUM(F62:F65)-0)/(SUM(E62:E65)-0))) -> 0
B10: Reset response cells? | D10: Please select "Yes" each time you would like to clear resposes
A12: Initial Assessment - Cetification & Registration
A13: Question III-A | C13: =IF('I - Regulation'!C9='Reg list'!A5,"Not applicable",'Compl processes list'!A2) -> Has the country set up product market entry requirements and processes (e.g. product registration)?
A14: Response - select applicable option
A15: Next Step | C15: =IF(C14='Compl processes list'!A3,'Compl processes list'!C3,(IF(C14='Compl processes list'!A4,'Compl processes list'!C4,(IF(C14='Compl processes list'!A5,'Compl processes list'!C5," "))))) -> 
A17: Assessing Processes for Implementing Efficiency Policies for Products
A18: Processes - Certification & Registration | D18: Response - select applicable option | E18: Max score | F18: Question Score | G18: Adjusted score
A19: III.1 | B19: =IF('I - Regulation'!C9='Reg list'!A5,"Not applicable",IF(C14='Compl processes list'!A5,"Not applicable",'Compl processes list'!A8)) -> Does the Regulator or certification body review test reports to confirm compliance with the regulatory requirements, before certifying products? | E19: ='Compl processes list'!B9 -> 2 | F19: =IF(D19='Compl processes list'!A9,'Compl processes list'!B9,(IF(D19='Compl processes list'!A10,'Compl processes list'!B10,(IF(D19='Compl processes list'!A11,'Compl processes list'!B11,0))))) -> 0 | G19: =(F19-0)/(SUM($E$19:$E$26)-0) -> 0
A20: III.2 | B20: =IF('I - Regulation'!C9='Reg list'!A5,"Not applicable",IF(C14='Compl processes list'!A5,"Not applicable",IF('II - Resources'!D15='Res list'!A11,"Not applicable",'Compl processes list'!C8))) -> Which products are registered in product registration system (database)? | E20: ='Compl processes list'!D9 -> 2 | F20: =IF(D20='Compl processes list'!C9,'Compl processes list'!D9,(IF(D20='Compl processes list'!C10,'Compl processes list'!D10,IF(D20='Compl processes list'!C12,'Compl processes list'!D12,0)))) -> 0 | G20: 0
A21: III.3 | B21: =IF('I - Regulation'!C9='Reg list'!A5,"Not applicable",IF(C14='Compl processes list'!A5,"Not applicable",IF('II - Resources'!D15='Res list'!A11,"Not applicable",'Compl processes list'!E8))) -> What type of product registration system (database) is used to register products? | E21: ='Compl processes list'!F9 -> 1 | F21: =IF(D21='Compl processes list'!E9,'Compl processes list'!F9,(IF(D21='Compl processes list'!E10,'Compl processes list'!F10,IF(D21='Compl processes list'!E12,'Compl processes list'!F12,0)))) -> 0 | G21: 0
A22: III.4 | B22: =IF('I - Regulation'!C9='Reg list'!A5,"Not applicable",IF(C14='Compl processes list'!A5,"Not applicable",'Compl processes list'!G8)) -> What action is taken against suspicious or wrong product certification application (i.e. incomplete applications, applications with innaccuracies and errors, suspicious test reports, etc.)? | E22: ='Compl processes list'!H9 -> 1 | F22: =IF(D22='Compl processes list'!G9,'Compl processes list'!H9,(IF(D22='Compl processes list'!G10,'Compl processes list'!H10,IF(D22='Compl processes list'!G11,'Compl processes list'!H11,0)))) -> 0 | G22: 0
A23: III.5 | B23: =IF('I - Regulation'!C9='Reg list'!A5,"Not applicable",IF(C14='Compl processes list'!A5,"Not applicable",'Compl processes list'!I8)) -> If the country has labeling program, how is the energy or quality label generated? | E23: =IF(D23='Compl processes list'!I11,0, 'Compl processes list'!J9) -> 1 | F23: =IF(D23='Compl processes list'!I9,'Compl processes list'!J9,(IF(D23='Compl processes list'!I10,'Compl processes list'!J10,IF(D23='Compl processes list'!I11,'Compl processes list'!J11,0)))) -> 0 | G23: 0
A24: III.6 | B24: =IF('I - Regulation'!C9='Reg list'!A5,"Not applicable",IF(C14='Compl processes list'!A5,"Not applicable",'Compl processes list'!A15)) -> Do Customs Officers (or equivalent) check products and documentation for compliance at the border/ports? | E24: ='Compl processes list'!B16 -> 2 | F24: =IF(D24='Compl processes list'!A16,'Compl processes list'!B16,(IF(D24='Compl processes list'!A17,'Compl processes list'!B17,(IF(D24='Compl processes list'!A18,'Compl processes list'!B18, (IF(D24='Compl processes list'!A19,'Compl processes list'!B19,0))))))) -> 0 | G24: 0
A25: III.7 | B25: =IF('I - Regulation'!C9='Reg list'!A5,"Not applicable",IF(C14='Compl processes list'!A5,"Not applicable",IF(D21='Compl processes list'!E11,"Not applicable", 'Compl processes list'!C15))) -> Do Customs Officers (or equivalent) at the border/ports have access to the product registration system (database), so they can cross-check whether products are authorized to enter the country? | E25: ='Compl processes list'!D16 -> 1 | F25: =IF(D25='Compl processes list'!C16,'Compl processes list'!D16,(IF(D25='Compl processes list'!C17,'Compl processes list'!D17,0))) -> 0 | G25: 0
A26: III.8 | B26: =IF('I - Regulation'!C9='Reg list'!A5,"Not applicable",IF(C14='Compl processes list'!A5,"Not applicable",'Compl processes list'!E15)) -> What action is taken if products do not meet entry requirements at the border/port (i.e. do not have required or correct documentation, not registered in the database, etc.)? | E26: ='Compl processes list'!F16 -> 1 | F26: =IF(D26='Compl processes list'!E16,'Compl processes list'!F16,(IF(D26='Compl processes list'!E17,'Compl processes list'!F17,IF(D26='Compl processes list'!E18,'Compl processes list'!F18,IF(D26='Compl processes list'!E19,'Compl processes list'!F19,0))))) -> 0 | G26: 0
E27: =SUM(E19:E26) -> 11 | F27: =SUM(F19:F26) -> 0 | G27: =SUM(G19:G26) -> 0
A28: Initial Assessment - Market Surveillance & Enforcement
A29: Question III-B | C29: =IF('I - Regulation'!C9='Reg list'!A5,"Not applicable",'Compl processes list'!E2) -> Does the program have market surveillance procedures and enforcement actions?
A30: Response - select applicable option
A31: Next Step | C31: =IF(C30='Compl processes list'!E3,'Compl processes list'!G3,(IF(C30='Compl processes list'!E4,'Compl processes list'!G4,(IF(C30='Compl processes list'!E5,'Compl processes list'!G5, " "))))) -> 
A33: Processes - Market Surveillance & Enforcement | D33: Response - select applicable option | E33: Max score | F33: Question Score | G33: Adjusted score
A34: III.9 | B34: =IF('I - Regulation'!C9='Reg list'!A5,"Not applicable",IF(C30='Compl processes list'!I5,"Not applicable",'Compl processes list'!A22)) -> Does the Regulator regularly conduct market surveillance activities? | E34: ='Compl processes list'!B23 -> 2 | F34: =IF(D34='Compl processes list'!A23,'Compl processes list'!B23,(IF(D34='Compl processes list'!A24,'Compl processes list'!B24,0))) -> 0 | G34: =(F34-0)/(SUM($E$34:$E$44)-0) -> 0
A35: III.10 | B35: =IF('I - Regulation'!C9='Reg list'!A5,"Not applicable",IF(C30='Compl processes list'!I5,"Not applicable",'Compl processes list'!C22)) -> How frequently does the Regulator conduct in-store and/or product document inspections? | E35: ='Compl processes list'!D23 -> 1 | F35: =IF(D35='Compl processes list'!C23,'Compl processes list'!D23,(IF(D35='Compl processes list'!C24,'Compl processes list'!D24,(IF(D35='Compl processes list'!C25,'Compl processes list'!D25,0))))) -> 0 | G35: 0
A36: III.11 | B36: =IF('I - Regulation'!C9='Reg list'!A5,"Not applicable",IF(C30='Compl processes list'!I5,"Not applicable",'Compl processes list'!E22)) -> Does the Regulator gather compliance intelligence through other methods (i.e. complaints, customs, product registration system)? | E36: ='Compl processes list'!F23 -> 1 | F36: =IF(D36='Compl processes list'!E23,'Compl processes list'!F23,(IF(D36='Compl processes list'!E24,'Compl processes list'!F24,(IF(D36='Compl processes list'!E25,'Compl processes list'!F25,0))))) -> 0 | G36: 0
A37: III.12 | B37: =IF('I - Regulation'!C9='Reg list'!A5,"Not applicable",IF(C30='Compl processes list'!I5,"Not applicable",'Compl processes list'!G22)) -> Does the Regulator monitor online sales for potential non-compliance (ie. missing labels, suspicious claims, unregistered models, etc.)? | E37: =IF(D37='Compl processes list'!G26,0, 'Compl processes list'!H23) -> 1 | F37: =IF(D37='Compl processes list'!G23,'Compl processes list'!H23,(IF(D37='Compl processes list'!G24,'Compl processes list'!H24,(IF(D37='Compl processes list'!G25,'Compl processes list'!H25,(IF(D37='Compl processes list'!G26,'Compl processes list'!H26,0))))))) -> 0 | G37: 0
A38: III.13 | B38: =IF('I - Regulation'!C9='Reg list'!A5,"Not applicable",IF(C30='Compl processes list'!I5,"Not applicable",'Compl processes list'!A29)) -> Does the Regulator conduct verification testing, to check whether products perform to standard and as claimed? | E38: ='Compl processes list'!B30 -> 1 | F38: =IF(D38='Compl processes list'!A30,'Compl processes list'!B30,(IF(D38='Compl processes list'!A31,'Compl processes list'!B31,(IF(D38='Compl processes list'!A32,'Compl processes list'!B32,0))))) -> 0 | G38: 0
A39: III.14 | B39: =IF('I - Regulation'!C9='Reg list'!A5,"Not applicable",IF(C30='Compl processes list'!I5,"Not applicable",IF(D38='Compl processes list'!A32,"Not applicable",'Compl processes list'!C29))) -> How are product selected for verification testing? | E39: ='Compl processes list'!D30 -> 1 | F39: =IF(D39='Compl processes list'!C30,'Compl processes list'!D30,(IF(D39='Compl processes list'!C31,'Compl processes list'!D31,(IF(D39='Compl processes list'!C32,'Compl processes list'!D32,0))))) -> 0 | G39: 0
A40: III.15 | B40: =IF('I - Regulation'!C9='Reg list'!A5,"Not applicable",IF(C30='Compl processes list'!I5,"Not applicable",IF(D38='Compl processes list'!A32,"Not applicable",'Compl processes list'!E29))) -> Where are products procured for verification testing? | E40: ='Compl processes list'!F30 -> 1 | F40: =IF(D40='Compl processes list'!E30,'Compl processes list'!F30,(IF(D40='Compl processes list'!E31,'Compl processes list'!F31,(IF(D40='Compl processes list'!E32,'Compl processes list'!F32,0))))) -> 0 | G40: 0
A41: III.16 | B41: =IF('I - Regulation'!C9='Reg list'!A5,"Not applicable",IF(C30='Compl processes list'!I5,"Not applicable",'Compl processes list'!G29)) -> Does the Regulator keep an accessible record of market monitoring and verification testing activities, results, and non-compliant cases? | E41: ='Compl processes list'!H30 -> 1 | F41: =IF(D41='Compl processes list'!G30,'Compl processes list'!H30,(IF(D41='Compl processes list'!G31,'Compl processes list'!H31,(IF(D41='Compl processes list'!G32,'Compl processes list'!H32,0))))) -> 0 | G41: 0
A42: III.17 | B42: =IF('I - Regulation'!C9='Reg list'!A5,"Not applicable",IF(C30='Compl processes list'!I5,"Not applicable",'Compl processes list'!A35)) -> Does the Regulator take enforcement action, both informal or formal, against non-compliant suppliers and products? | E42: ='Compl processes list'!B36 -> 2 | F42: =IF(D42='Compl processes list'!A36,'Compl processes list'!B36,(IF(D42='Compl processes list'!A37,'Compl processes list'!B37,(IF(D42='Compl processes list'!A38,'Compl processes list'!B38,0))))) -> 0 | G42: 0
A43: III.18 | B43: =IF('I - Regulation'!C9='Reg list'!A5,"Not applicable",IF(C30='Compl processes list'!I5,"Not applicable",'Compl processes list'!C35)) -> Are enforcement actions proportionate to the severity and impact of the offence (i.e. large fines or prosecution for worst, intentional, and most serious offences / informal warnings or requests to correct issues for small, unintentional, least serious offences)? | E43: ='Compl processes list'!D36 -> 1 | F43: =IF(D43='Compl processes list'!C36,'Compl processes list'!D36,(IF(D43='Compl processes list'!C37,'Compl processes list'!D37,(IF(D43='Compl processes list'!C38,'Compl processes list'!D38,0))))) -> 0 | G43: 0
A44: III.19 | B44: =IF('I - Regulation'!C9='Reg list'!A5,"Not applicable",IF(C30='Compl processes list'!I5,"Not applicable",'Compl processes list'!E35)) -> Does the Regulator follow up with the supplier until the offence is corrected? | E44: ='Compl processes list'!F36 -> 1 | F44: =IF(D44='Compl processes list'!E36,'Compl processes list'!F36,(IF(D44='Compl processes list'!E37,'Compl processes list'!F37,(IF(D44='Compl processes list'!E38,'Compl processes list'!F38,0))))) -> 0 | G44: 0
A46: Initial Assessment - Regional Collaboration
A47: Question III-C | C47: =IF('I - Regulation'!C9='Reg list'!A5,"Not applicable",'Compl processes list'!M2) -> Is regional or bi-lateral collaboration on compliance with other countries possible?
A48: Response - select applicable option
A49: Next Step | C49: =IF(C48='Compl processes list'!M3,'Compl processes list'!N3,(IF(C48='Compl processes list'!M4,'Compl processes list'!N4,(IF(C48='Compl processes list'!M5,'Compl processes list'!N5," "))))) -> 
A51: Regional Collaboration and Information Sharing | E51: Max score | F51: Question Score | G51: Adjusted score
A52: III.24 | B52: =IF('I - Regulation'!C9='Reg list'!A5,"Not applicable",IF(C48='Compl processes list'!M5,"Not applicable",'Compl processes list'!A50)) -> Does the Regulator engage in available regional or bi-lateral collaborations on compliance? | E52: ='Compl processes list'!B51 -> 1 | F52: =IF('III - Compliance Processes'!D52='Compl processes list'!A51,'Compl processes list'!B51,(IF('III - Compliance Processes'!D52='Compl processes list'!A52,'Compl processes list'!B52,(IF('III - Compliance Processes'!D52='Compl processes list'!A53,'Compl processes list'!B53, 0))))) -> 0 | G52: =(F52-0)/(SUM($E$52:$E$54)-0) -> 0
A53: III.25 | B53: =IF('I - Regulation'!C9='Reg list'!A5,"Not applicable",IF(C48='Compl processes list'!M5,"Not applicable",'Compl processes list'!C50)) -> Does the Regulator share compliance intelligence with other collaborating countries through available channels? | E53: ='Compl processes list'!D51 -> 1 | F53: =IF('III - Compliance Processes'!D53='Compl processes list'!C51,'Compl processes list'!D51,(IF('III - Compliance Processes'!D53='Compl processes list'!C52,'Compl processes list'!D52,(IF('III - Compliance Processes'!D53='Compl processes list'!C53,'Compl processes list'!D53,0))))) -> 0 | G53: =(F53-0)/(SUM($E$52:$E$54)-0) -> 0
A54: III.26 | B54: =IF('I - Regulation'!C9='Reg list'!A5,"Not applicable",IF(C48='Compl processes list'!M5,"Not applicable",IF(D53='Compl processes list'!C53,"Not applicable",'Compl processes list'!E50))) -> What compliance intelligence and information does the Regulator share with other countries? | E54: ='Compl processes list'!F51 -> 1 | F54: =IF('III - Compliance Processes'!D54='Compl processes list'!E51,'Compl processes list'!F51,(IF('III - Compliance Processes'!D54='Compl processes list'!E52,'Compl processes list'!F52,(IF('III - Compliance Processes'!D54='Compl processes list'!E53,'Compl processes list'!F53,0))))) -> 0 | G54: =(F54-0)/(SUM($E$52:$E$54)-0) -> 0
E55: =SUM(E34:E44) -> 13 | F55: =SUM(F34:F44) -> 0 | G55: =SUM(G34:G44) -> 0
A56: Initial Assessment - Commuincating Compliance Requirements, Activities, and Results | E56: =E55+E76 -> 16 | F56: =F55+F76 -> 0 | G56: =(F56-0)/(E56-0) -> 0 | H56: Adjusted (with regional collaboration)
A57: Question III-C | C57: =IF('I - Regulation'!C9='Reg list'!A5,"Not applicable",'Compl processes list'!I2) -> Does the program communicate compliance requirements, market surveillance actions, and compliance results to stakeholders?
A58: Response - select applicable option
A59: Next Step | C59: =IF(C58='Compl processes list'!I3,'Compl processes list'!K3,(IF(C58='Compl processes list'!I4,'Compl processes list'!K4,(IF(C58='Compl processes list'!I5,'Compl processes list'!K5," "))))) -> 
A61: Communicating Compliance Requirements, Activities, and Results | D61: Response - select applicable option | E61: Max score | F61: Question Score | G61: Adjusted score
A62: III.20 | B62: =IF('I - Regulation'!C9='Reg list'!A5,"Not applicable",IF(C58='Compl processes list'!I5,"Not applicable",'Compl processes list'!A42)) -> Is information or guidance on policy compliance (i.e. how to comply, processes, FAQs) easily and publically accessible to stakeholders? | E62: ='Compl processes list'!B43 -> 2 | F62: =IF('III - Compliance Processes'!D62='Compl processes list'!A43,'Compl processes list'!B43,(IF('III - Compliance Processes'!D62='Compl processes list'!A44,'Compl processes list'!B44,(IF('III - Compliance Processes'!D62='Compl processes list'!A45,'Compl processes list'!B45,0))))) -> 0 | G62: =(F62-0)/(SUM($E$62:$E$65)-0) -> 0
A63: III.21 | B63: =IF('I - Regulation'!C9='Reg list'!A5,"Not applicable",IF(C58='Compl processes list'!I5,"Not applicable",'Compl processes list'!C42)) -> How is compliance information communicated to stakeholders? | E63: ='Compl processes list'!D43 -> 1 | F63: =IF('III - Compliance Processes'!D63='Compl processes list'!C43,'Compl processes list'!D43,(IF('III - Compliance Processes'!D63='Compl processes list'!C44,'Compl processes list'!D44,(IF('III - Compliance Processes'!D63='Compl processes list'!C45,'Compl processes list'!D45,0))))) -> 0 | G63: =(F63-0)/(SUM($E$62:$E$65)-0) -> 0
A64: III.22 | B64: =IF('I - Regulation'!C9='Reg list'!A5,"Not applicable",IF(C58='Compl processes list'!I5,"Not applicable",'Compl processes list'!E42)) -> How regularly is compliance information communicated to stakeholders? | E64: ='Compl processes list'!F43 -> 1 | F64: =IF('III - Compliance Processes'!D64='Compl processes list'!E43,'Compl processes list'!F43,(IF('III - Compliance Processes'!D64='Compl processes list'!E44,'Compl processes list'!F44,(IF('III - Compliance Processes'!D64='Compl processes list'!E45,'Compl processes list'!F45,0))))) -> 0 | G64: =(F64-0)/(SUM($E$62:$E$65)-0) -> 0
A65: III.23 | B65: =IF('I - Regulation'!C9='Reg list'!A5,"Not applicable",IF(C58='Compl processes list'!I5,"Not applicable",'Compl processes list'!G42)) -> Is information on market surveillance activities and results (anonomized or not) publically accessible to stakeholders? | E65: ='Compl processes list'!H43 -> 1 | F65: =IF('III - Compliance Processes'!D65='Compl processes list'!G43,'Compl processes list'!H43,(IF('III - Compliance Processes'!D65='Compl processes list'!G44,'Compl processes list'!H44,(IF('III - Compliance Processes'!D65='Compl processes list'!G45,'Compl processes list'!H45,0))))) -> 0 | G65: =(F65-0)/(SUM($E$62:$E$65)-0) -> 0
E66: =SUM(E62:E65) -> 5 | F66: =SUM(F62:F65) -> 0 | G66: =SUM(G62:G65) -> 0
A67: Please go to Results tab to see assessment resuts
E76: =SUM(E52:E54) -> 3 | F76: =SUM(F52:F54) -> 0 | G76: =SUM(G52:G54) -> 0
E79: For recommendations
F80: Max score | G80: Question Score | H80: Adjusted score | I80: max adjusted score
E81: Total - CA | F81: =SUM(F82:F83) -> 11 | G81: =SUM(G82:G83) -> 0 | H81: =SUM(H82:H83) -> 0 | I81: =SUM(I82:I83) -> 1
E82: Product certification and registration | F82: =SUM(E19:E23) -> 7 | G82: =SUM(F19:F23) -> 0 | H82: =SUM(G19:G23) -> 0 | I82: =F82/F81 -> 0.6363636364
E83: Customs check | F83: =SUM(E24:E26) -> 4 | G83: =SUM(F24:F26) -> 0 | H83: =SUM(G24:G26) -> 0 | I83: =F83/F81 -> 0.3636363636
E84: Total - MS | F84: =SUM(F85:F88) -> 16 | G84: =SUM(G85:G88) -> 0 | H84: =SUM(H85:H88) -> 0 | I84: =SUM(I85:I88) -> 1
E85: Market inspections | F85: =SUM(E34:E37)+E76 -> 8 | G85: =SUM(F34:F37)+F76 -> 0 | H85: =SUM(G34:G37)+G76 -> 0 | I85: =F85/$F$84 -> 0.5
E86: Verification testing | F86: =SUM(E38:E40) -> 3 | G86: =SUM(F38:F40) -> 0 | H86: =SUM(G38:G40) -> 0 | I86: =F86/$F$84 -> 0.1875
E87: Record keeping | F87: =E41 -> 1 | G87: =F41 -> 0 | H87: =G41 -> 0 | I87: =F87/$F$84 -> 0.0625
E88: Enforcement | F88: =SUM(E42:E44) -> 4 | G88: =SUM(F42:F44) -> 0 | H88: =SUM(G42:G44) -> 0 | I88: =F88/$F$84 -> 0.25
E89: Total - Comms | F89: =SUM(F90:F91) -> 5 | G89: =SUM(G90:G91) -> 0 | H89: =SUM(H90:H91) -> 0 | I89: =SUM(I90:I91) -> 1
E90: Communicating requirements | F90: =SUM(E62:E64) -> 4 | G90: =SUM(F62:F64) -> 0 | H90: =SUM(G62:G64) -> 0 | I90: =F90/F89 -> 0.8
E91: Communicating non-compliance | F91: =SUM(E65:E65) -> 1 | G91: =SUM(F65:F65) -> 0 | H91: =SUM(G65:G65) -> 0 | I91: =F91/F89 -> 0.2

Sheet Compl processes list (hidden)
A1: Compliance processes - gateaway question
A2: Has the country set up product market entry requirements and processes (e.g. product registration)? | C2: Action | E2: Does the program have market surveillance procedures and enforcement actions? | G2: Action | I2: Does the program communicate compliance requirements, market surveillance actions, and compliance results to stakeholders? | K2: Action | M2: Is regional or bi-lateral collaboration on compliance with other countries possible? | N2: Action
A3: Yes | C3: Go to Question III.1 | E3: Yes | G3: Go to Question III.9 | I3: Yes | K3: Go to Question III.20 | M3: Yes | N3: Go to Question III.24
A4: Under development | C4: Go to Question III.1 | E4: Under development | G4: Go to Question III.9 | I4: Somewhat | K4: Go to Question III.20 | M4: Somewhat | N4: Go to Question III.24
A5: No | C5: Go to Question III-B (on Market Surveillance) | E5: No | G5: Go to Question III-C (on Communications) | I5: No | K5: Go to Question III-D (on Regional Collaboration) | M5: No | N5: Go to Results tab
A7: Certification and Registration
A8: Does the Regulator or certification body review test reports to confirm compliance with the regulatory requirements, before certifying products? | C8: Which products are registered in product registration system (database)? | E8: What type of product registration system (database) is used to register products? | G8: What action is taken against suspicious or wrong product certification application (i.e. incomplete applications, applications with innaccuracies and errors, suspicious test reports, etc.)? | I8: If the country has labeling program, how is the energy or quality label generated?
A9: Yes | B9: =IF('III - Compliance Processes'!D23=I11,(2+J9),2) -> 2 | C9: Only government or third party certified products | D9: 2 | E9: National or regional web-based system | F9: 1 | G9: Application is rejected and supplier is required to resubmit corrected application or missing information | H9: 1 | I9: Regulator approves the label request or provides a label for the certified product | J9: 1
A10: Test reports are required, but not reviewed for accuracy by government or certification body | B10: =IF('III - Compliance Processes'!D23=I11,(1+J10),1) -> 1 | C10: Mainly government or third party certified products, with exceptions (e.g. regulator or certification body missed certification approval deadline and products are automatically are approved) | D10: 1 | E10: Off-line product database (e.g. MS Excel based) | F10: 0.5 | G10: Application is given conditional approval, with a deadline to address issues | H10: 0.5 | I10: Supplier generates their own label, with no prior approvals from the Regulator | J10: 0.5
A11: Test reports are not required | B11: 0 | C11: Products that are self certified by supplier | D11: 1 | E11: None | F11: 0 | G11: No action taken | H11: 0 | I11: No labels required | J11: 0
C12: Products are not registered | D12: 0 | G12: Products are self-certified by supplier | H12: 0.5
A14: Customs
A15: Do Customs Officers (or equivalent) check products and documentation for compliance at the border/ports? | C15: Do Customs Officers (or equivalent) at the border/ports have access to the product registration system (database), so they can cross-check whether products are authorized to enter the country? | E15: What action is taken if products do not meet entry requirements at the border/port (i.e. do not have required or correct documentation, not registered in the database, etc.)?
A16: Yes, they conduct thorough inspections | B16: 2 | C16: Yes | D16: 1 | E16: Products are not allowed into the country or should be stored in a warehouse at the border/port of entry until the issues are addressed | F16: 1
A17: Customs officers (or equivalent) are aware of regulartory requirements and check produt energy efficiency or quality documentation, inspect the labels (when applicable) but do not check whether products are registered | B17: 1.5 | C17: No | D17: 0 | E17: Products are allowed into the country on the condition that supplier addresses the issues before selling the products | F17: 0.5
A18: Customs officers (or equivalent) have limited capacity - they check minimal requirements and/or check shipments at random | B18: 1 | E18: Products are confiscated and destroyed | F18: 0.25
A19: No | B19: 0 | E19: Products are not checked at the border | F19: 0
A21: Market Monitoring
A22: Does the Regulator regularly conduct market surveillance activities? | C22: How frequently does the Regulator conduct in-store and/or product document inspections? | E22: Does the Regulator gather compliance intelligence through other methods (i.e. complaints, customs, product registration system)? | G22: Does the Regulator monitor online sales for potential non-compliance (ie. missing labels, suspicious claims, unregistered models, etc.)?
A23: Yes | B23: 2 | C23: Regularly (i.e. monthly, quarterly, every 6 months) | D23: =IF('III - Compliance Processes'!D37='Compl processes list'!G26,(1+'Compl processes list'!H23), 1) -> 1 | E23: Yes | F23: 1 | G23: Yes | H23: 1
A24: No | B24: 0 | C24: Occasionally (i.e. after policy revision, when donor or government funding is available, etc.) | D24: =IF('III - Compliance Processes'!D37='Compl processes list'!G26,(0.5+'Compl processes list'!H24), 0.5) -> 0.5 | E24: Sometimes | F24: 0.5 | G24: Not regularly | H24: 0.5
C25: No inspections are conducted | D25: 0 | E25: No | F25: 0 | G25: No | H25: 0
G26: Not applicable | H26: 0
A28: Verification Testing & Recording
A29: Does the Regulator conduct verification testing, to check whether products perform to standard and as claimed? | C29: How are product selected for verification testing? | E29: Where are products procured for verification testing? | G29: Does the Regulator keep an accessible record of market monitoring and verification testing activities, results, and non-compliant cases?
A30: Yes, regularly | B30: 1 | C30: Based on risk levels (e.g. based on market intelligence information, previous test results, etc.) | D30: 1 | E30: From retail shops | F30: 1 | G30: Yes | H30: 1
A31: Ocassionally, when funding is available | B31: 0.5 | C31: At random | D31: 0.5 | E31: From supplier warehouses and/or retail shops | F31: 0.5 | G31: Only certain results, such as verification testing and/or in-store labeling inspections | H31: 0.5
A32: No | B32: 0 | C32: No verification testing is conducted | D32: 0 | E32: From supplier warehouses | F32: 0 | G32: No | H32: 0
A34: Enforcement Actions
A35: Does the Regulator take enforcement action, both informal or formal, against non-compliant suppliers and products? | C35: Are enforcement actions proportionate to the severity and impact of the offence (i.e. large fines or prosecution for worst, intentional, and most serious offences / informal warnings or requests to correct issues for small, unintentional, least serious offences)? | E35: Does the Regulator follow up with the supplier until the offence is corrected?
A36: Yes | B36: 2 | C36: Yes | D36: 1 | E36: Yes | F36: 1
A37: Sometimes | B37: 1 | C37: Sometimes | D37: 0.5 | E37: Sometimes | F37: 0.5
A38: No | B38: 0 | C38: No | D38: 0 | E38: No | F38: 0
A41: Communicating Compliance Requirements, Activities, and Results
A42: Is information or guidance on policy compliance (i.e. how to comply, processes, FAQs) easily and publically accessible to stakeholders? | C42: How is compliance information communicated to stakeholders? | E42: How regularly is compliance information communicated to stakeholders? | G42: Is information on market surveillance activities and results (anonomized or not) publically accessible to stakeholders?
A43: Yes - open access for all stakeholders | B43: 2 | C43: Diverse mechanisms - on regulator website, in the product registration system (database), via stakeholder distribution lists, in public announcements, in stakeholder meetings, and trainings | D43: 1 | E43: Proactively - regularly and on an ongoing basis, continuous engagement with stakeholders | F43: 1 | G43: Yes - information on activities and results are accessible | H43: 1
A44: Somewhat - limited access, for a fee, or only upon request | B44: 1 | C44: Limited mechanisms (e.g. on regulator website or via stakeholder distribution lists) | D44: 0.5 | E44: Reactively - only when new information is available, when requested, or when funding available | F44: 0.5 | G44: Somewhat - only information for some activities OR results are accessible | H44: 0.5
A45: No | B45: 0 | C45: No communications | D45: 0 | E45: Not at all | F45: 0 | G45: No | H45: 0
A49: Regional Collaboration
A50: Does the Regulator engage in available regional or bi-lateral collaborations on compliance? | C50: Does the Regulator share compliance intelligence with other collaborating countries through available channels? | E50: What compliance intelligence and information does the Regulator share with other countries?
A51: Yes | B51: 1 | C51: Yes, actively through regional or regionally connected product registration system (database), Mutual Recognition Agreement, or regular communication (e.g. regular meetings, online discussion forums, calls, etc.) | D51: 1 | E51: Information such as testing plans, test results, data on suspicious products, questions and lessons learned about compliance activities and challenges | F51: 1
A52: Somewhat - on some aspects or occasionally | B52: 0.5 | C52: Only some information | D52: 0.5 | E52: Very limited information on test results, products and compliance processes | F52: 0.5
A53: No | B53: 0 | C53: No | D53: 0 | E53: No | F53: 0

Sheet Definitions
A1: DEFINITIONS
A3: Here we provide definitions for common compliance terms used in this assessment.
A6: Administrative Guidelines are a complementary to the legislation providing clear and consistent guidance to the energy efficiency compliance program administrators and stakeholders to better understand processes and requirements.
A7: Certification is the validation of performance by a third-party (i.e. not the product suppliers) in order to demonstrate that the product meets labelling or standards requirements, ensuring consistency, and giving credibility to claims about energy efficiency. In cases of Supplier's Declaration of Conformity, the certification is declared by the supplier.
A8: Compliance is a conformance to a rule, such as a law, policy, specification or standards. In this case conformance is to the requirements for all participants in the energy efficiency or quality program, as specified in relevant laws, regulations and associated administrative arrangements for appliances, lighting, and equipment.
A9: Conformity Assessment is a demonstration that specified requirements relating to a product, process, system, person or body are fulfilled. (ISO/IEC 17000: 2004) Includes testing, certifying, and registering products to ensure they conform to requirements, before they are allowed on a market.
A10: Enforcement includes the actions taken by an authority in response to incidents of non-compliance with the rules of a program.
A11: Market Surveillance includes activities required to monitor and check compliance with energy efficiency or quality program requirements, once products are in the marketplace (e.g. market monitoring and inspections, verification testing).
A12: Non-Compliance is any instance deemed by the compliance authority to be discordant with requirements of a program.
A13: Product Registration System (or Database) is an energy efficiency program tool that captures energy efficiency specific information on products available on the market, serving as the initial gateway for products to be placed on a market.
A14: Supplier encompasses manufacturer, importer or distributor of appliances or products included in energy efficiency or quality program.
A15: Verification Testing in energy efficiency and quality programs is used to prove the performance of a product with regard to its performance and quality in accordance with the specified test methodology. This can be done, depending on program requirements, either independently, via a third party laboratory or in government laboratory.

Sheet Recom list (hidden)
C1: Key Priority | D1: High
C2: Secondary Priority | D2: Medium
C3: No Improvement | D3: Low
A5: Indicator | B5: Areas | C5: Recommendation - Key Priority | D5: Level of Effort - Key Priority | E5: Who? - Key priority | F5: Recommendation - Secondary Priority | G5: Level of Effort - Secondary Priority | H5: Who - Secondary Priority
A6: Regulation | B6: Regulations - Key Provisions | C6: Adopt or revise the existing regulation with critical provisions such as roles and responsibilities, offences and penalties, which is foundational to effective policy compliance. | D6: Low | E6: - Relevant government agency(-ies) - Expert technical assistance | F6: Revise appropriate regulation(s) for policy enforcement to include missing key provisions such as roles and responsibilities, offences and penalties. | G6: Low | H6: - Relevant government agency(-ies) - Expert technical assistance
A7: Regulation | B7: Regulations - Additional Provisions | C7: Adopt or revise the existing regulation with additional provisions for product ceritfication and registration and market surveillance powers, which are essential for effectively setting up policy compliance processes. | D7: Low | E7: - Relevant government agency(-ies) - Expert technical assistance | F7: Revise appropriate regulation(s) to include missing provisions for product ceritfication and registration, and market surveillance powers, which are essential for effectively setting up policy compliance processes. | G7: Low | H7: - Relevant government agency(-ies) - Expert technical assistance
A8: Regulation | B8: Other - Administrative Guidelines | C8: Develop administrative guidance to complement the regulation that outlines in detail compliance processes and requirements. | D8: Medium | E8: - Relevant government agency(-ies) - Expert technical assistance | F8: Ensure that available administrative guidance is comprehensive and clear for stakeholders. | G8: Low | H8: - Relevant government agency(-ies) - Expert technical assistance
A9: Resources | B9: Institutional Collaboration | C9: Identify Regulator, assign responsibilities and establish institutional collaboration with key agencies (e.g. customs) reponsible for policy enforcement before setting up compliance processes. | D9: Low | E9: - Relevant government agency(-ies) | F9: Before setting up compliance processes, ensure that responsibilities are identified for key agencies and institutional collaboration is established with key agencies engaged in policy enforcement. | G9: Low | H9: Relevant government agency(-ies)
A10: Resources | B10: Human Capital | C10: Ensure sufficient staffing with adequate training and knowledge to implement compliance processes. | D10: Medium | E10: - Internal resources - Knowledge sharing opportunities, trainings - Expert technical assistance | F10: Ensure that compliance staff is sufficient with adequate training and knowledge to implement compliance processes. | G10: Medium | H10: - Internal resources - Knowledge sharing opportunities, trainings - Expert technical assistance
A11: Resources | B11: Product Registration System | C11: Invest in product registration system - a tool to record information on all registered products available on the market. | D11: High | E11: - Expert technical assistance - Software developer | F11: Ensure that appropriate registration system is developed and and used to support policy compliance processes. | G11: - | H11: -
A12: Resources | B12: Access to testing | C12: Identify existing independent testing facilities in country/region/outside region for testing products. Alternatively, when financially viable, build national testing lab. | D12: Low/High | E12: - Lab equipment provider and expert technical assistance (establishing Lab) | F12: Seek access to independent testing facilities in country/region/outside region for testing products. Alternatively, when financially viable, build national testing laboratory. | G12: Low/High | H12: - Lab equipment provider and expert technical assistance (establishing Lab)
A13: Resources | B13: Other Resources | C13: Assess what tools and other resources are needed for effective compliance enforcement, secure funding for and obtain the needed tools and resources. | D13: Medium/High | E13: - | F13: Assess what additional tools and resources are needed for effective compliance enforcement, secure funding for and obtain the necessary tools and resources. | G13: Medium/High | H13: -
A14: Resources | B14: Budget/Funding | C14: Secure sustainable funding that is appropriate for country's policy compliance enforcement. | D14: - | E14: - | F14: Ensure country's policy compliance enforcement has adequate funding from the sustainable sources. | G14: - | H14: -
A15: Processes - Certification & Registration | B15: Product certification and registration | C15: Set up certification and regsitration processes that minimize the non-compliant products entering the country including accepting test reports only from independent accredited labs and certified by independent certification bodies/government agencies. | D15: Medium/High | E15: - Relevant government agency(-ies) - Expert technical assistance | F15: Ensure that existing certification and regsitration processes minimize the non-compliant products entering the market. | G15: Low/Medium | H15: - Relevant government agency(-ies) - Expert technical assistance
A16: Processes - Certification & Registration | B16: Customs check | C16: Set up collaboration mechanism with Customs (or equivalent) to check product compliance at the port of entry to prevent non-compliant products from entering the country. | D16: Medium | E16: - Relevant government agency(-ies) - Expert technical assistance | F16: Improve collaboration mechanism with Customs (or equivalent) to check product compliance at the port of entry and prevent non-compliant products from entering the country. | G16: Low/Medium | H16: - Relevant government agency(-ies) - Expert technical assistance
A17: Processes - Market Surveillance & Enforcement | B17: Market inspections | C17: Develop plan for surveilling product market. Select budget- and market-appropriate monitoring activities to effectively identify suspicious and non-compliant products. | D17: Medium/High | E17: - Relevant government agency(-ies) - Expert technical assistance | F17: Improve market surveillance strategies that are budget- and market-appropriate to effectively identify suspicious and non-compliant products. | G17: Medium/High | H17: - Relevant government agency(-ies) - Expert technical assistance
A18: Processes - Market Surveillance & Enforcement | B18: Verification testing | C18: Budget permitted, conduct verification testing as per best practices (e.g. target the high-risk products) to ensure the accuracy and reliability of testing results. If the in-coutry test lab is not available, seek out to outsource testing to test labs outside the country. | D18: Medium/High | E18: - Relevant government agency(-ies) | F18: Budget permitted, conduct regular verification testing as per best practices to ensure the accuracy and reliability of testing results and target the high-risk products. | G18: Medium/High | H18: - Relevant government agency(-ies)
A19: Processes - Market Surveillance & Enforcement | B19: Record keeping | C19: Set up procedures to record and keep the records from market surveillance activities, and utilize them to inform enforcement actions and future market surveillance. | D19: Low | E19: - Relevant government agency(-ies) | F19: Improve procedures to record and keep the records from market surveillance activities to inform enforcement actions and future market surveillance. | G19: Low | H19: - Relevant government agency(-ies)
A20: Processes - Market Surveillance & Enforcement | B20: Enforcement | C20: Set up procedures and processes for taking appropriate and proportionate enforcement actions to rectify non-compliance. | D20: Low | E20: - Relevant government agency(-ies) | F20: Ensure that procedures and processes are appropriate and proportionate enforcement actions are taken for to rectify each non-compliance. | G20: Low | H20: - Relevant government agency(-ies)
A21: Compliance Communication | B21: Communicating requirements | C21: Identify and set up appropriate approaches to communicate compliance requirements and procedures to improve compliance. | D21: Low/Medium | E21: - Relevant government agency(-ies) - Expert technical assistance - Associations, other Organizations | F21: Ensure that existing approaches to communicate compliance requirements and procedures are appropriate to inform stakeholders of requirements and compliance processes. | G21: Low/Medium | H21: - Relevant government agency(-ies) - Expert technical assistance - Associations, other Organizations
A22: Compliance Communication | B22: Communicating non-compliance | C22: Establish country-relevant procedures to report market surveillance actions and non-compliance to stakeholders to deter future non-compliance. | D22: Low/Medium | E22: - Relevant government agency(-ies) | F22: Ensure that appropriate procedures are in place to report relevant market surveillance actions and non-compliances to stakeholders to deter future non-compliance. | G22: Low/Medium | H22: - Relevant government agency(-ies)

Sheet Reg list (hidden)
A1: Regulatory Framework - gateaway question
A2: Does the country have regulation (or provisions) to implement and enforce product energy efficiency or quality policies, including offences, penalties, etc.? | C2: Action
A3: Yes | C3: Go to Question I.1
A4: The regulation is under development | C4: Go to Question I.1
A5: No | C5: This assessment is not applicable for the country. You do not need to answer any further questions. To get more guidance and information on how to set up regulatory framework and compliance processes, please refer to the CLASP Guidebook and compliance resources on clasp.ngo.
A7: Key provisions
A8: Does the regulation identify and define roles and responsibilities of key actors (i.e. regulator/enforcement authority, product manufacturer, retailer, etc. )? | C8: Does the regulation identify and define potential offences? | E8: Does the regulation provide a range of penalties or other enforcement actions for non-compliance? | G8: Does the regulation define manufacturer, importer, and retailer requirements?
A9: Yes | B9: 2 | C9: Yes | D9: 2 | E9: Yes, a range of penalties are provided to address different types of offences | F9: 2 | G9: Yes, there are requirements for all | H9: 2
A10: Some is covered, but some is missing | B10: 1 | C10: Some offences are defined | D10: 1 | E10: Only severe penalties are provided to address severe offences | F10: 1 | G10: There are requirements for some, but not all | H10: 1
A11: No | B11: 0 | C11: No | D11: 0 | E11: No, the regulation includes no penalties | F11: 0 | G11: No, there are no requirements | H11: 0
A13: Additional provisions
A14: What type of test report is required to prove the product is compliant with the standards? | C14: How are the product certified, to be authorized for sale on the market? | E14: Do products need to be registered in a national/regional product registry (database), before they can be sold on the market? | G14: Does the regulation define market surveillance powers for regulator/compliance authority?
A15: Report from only an accredited 3rd party laboratory | B15: 1 | C15: 3rd party or government certification | D15: 1 | E15: Products must be registered in an electronic product registry (database) | F15: 1 | G15: Yes | H15: 1
A16: Report from any 3rd party laboratory | B16: 0.75 | C16: Self-certification by the supplier | D16: 0.5 | E16: Products must be registered in a paper-based system | F16: 0.5 | G16: No | H16: 0
A17: Report from an accredited 3rd party or manufacturer laboratory | B17: 0.5 | C17: No certification required | D17: 0 | E17: No, products do not need to be registered in a product registry (database) | F17: 0
A18: Report from any 3rd party or manufacturer laboratory | B18: 0.25
A19: No test report is required OR testing is done by government | B19: 0
A21: Other - Administrative Guidelines
A22: Is any explanation on processes and requirements made available, in addition to the regulation, for example in the form of Administrative Guidelines (i.e. guidelines, FAQs, or standard operating procedures) that provide more detail and guidance on how to implement and comply with the policy?
A23: Yes, the program has clear guidance complimenting regulation | B23: 1
A24: There is guidance in different documents, but not in one document | B24: 0.5
A25: The guidance is under development | B25: 0.5
A26: No | B26: 0

Sheet Res list (hidden)
A1: Institutional Framework and Human Capital
A2: Has a Regulator been assigned responsibility for ensuring compliance with the regulations? | C2: Is the Regulator actively implementing all their assigned responsibilities (ie. conformity assessment, market surveillance, enforcement, reporting, etc.)? | E2: Have the roles and responsibilities been clearly defined and assigned between agencies if there is a need for their support for compliance processes? | G2: Is compliance program sufficiently staffed? | I2: Is compliance staff trained, knowledgeable, and able to execute their duties?
A3: Yes | B3: 2 | C3: Yes | D3: 2 | E3: Yes | F3: 1 | G3: Yes | H3: 1 | I3: Yes | J3: 1
A4: In process | B4: 1 | C4: The regulator performs some but not all responsibilities | D4: 1 | E4: Partially | F4: 0.5 | G4: The program is partially staffed | H4: 0.5 | I4: Partially | J4: 0.5
A5: No | B5: 0 | C5: Not yet or responsibilities have not been set yet | D5: 0 | E5: No | F5: 0 | G5: Not staffed at all | H5: 0 | I5: No | J5: 0
G6: I don't know | H6: 0
A7: Access to Infrastructure
A8: Does the energy efficiency program use a product registration system (database)? | C8: Does the Regulator have access to test facilities, in-country or abroad, to conduct verification testing of products? | E8: Does the team have the tools and physical resources they need to conduct compliance activities (e.g. computers, mobile phones, etc.)?
A9: Yes | B9: 3 | C9: Yes, government and/or third party laboratories | D9: 2 | E9: Yes | F9: 1
A10: Under development | B10: 2 | C10: Yes, manufacturer laboratories | D10: 1 | E10: Some, but not all that are needed | F10: 0.5
A11: No | B11: 0 | C11: No access to testing facilities | D11: 0 | E11: No | F11: 0
C12: I do not know | D12: 0
A13: Budget/Funding
A14: Is there sufficient funding to conduct compliance activities? | C14: How is the energy efficiency program implementation and enforcement funded?
A15: Yes | B15: 1 | C15: Government funding, supplemented by application and registration fees | D15: 2
A16: Some, but not enough | B16: 0.5 | C16: Government funding only | D16: 2
A17: No | B17: 0 | C17: Government funding, supplemented by donor funding | D17: 1
A18: I don't know | B18: 0 | C18: Donor funding only | D18: 0.5
C19: No funding | D19: 0

Sheet Scorecard lists (hidden)
B2: Country | C2: Year | D2: Products | E2: Policy Instrument | F2: Evaluation | G2: Product Market | H2: Compliance | J2: Product Energy Source
B3: Algeria | C3: 2020 | D3: Air Conditioner | E3: Minimum Energy Performance Standards (MEPS) | F3: Extremely High Non-Compliance Risk indicates that the likelihood of non-compliant products circulating the market is very high and of grave concern. | G3: Imported | H3: Yes | I3: Yes | J3: On-grid
B4: Argentina | C4: 2021 | D4: Refrigerator | E4: Energy Labeling | F4: High Non-Compliance Risk indicates that the likelihood of non-compliant products circulating the market is high and of great concern. | G4: Imported and Locally Manufactured | H4: No | I4: No | J4: Off-grid
B5: Australia | C5: 2022 | D5: Lighting | E5: MEPS and Energy Labeling | F5: Medium Non-Compliance Risk indicates that the likelihood of non-compliant products circulating the market is somewhat concerning. | G5: Locally Manufactured | H5: Under development | I5: Don't know
B6: Bahrain | C6: 2023 | D6: Electric Motor | F6: Low Non-Compliance Risk indicates that the likelihood of non-compliant products circulating the market is relatively low.
B7: Bangladesh | C7: 2024 | D7: Television | F7: Minimal Non-Compliance Risk indicates that the likelihood of non-compliant products circulating the market is very low.
B8: Barbados | C8: 2025 | D8: Transformers | F8: Refer to CLASP Guidebook and Decision Tree for guidance on developing accompanying regulation and setting up policy compliance processes
B9: Botswana | C9: 2026 | D9: Electric Fans
B10: Brazil | C10: 2027 | D10: Washing Machines
B11: Brunei Darussalam
B12: California
B13: Cambodia
B14: Canada
B15: Chile
B16: China
B17: Colombia
B18: Cook Islands
B19: Costa Rica
B20: Cuba
B21: Dominican Republic
B22: ECOWAS
B23: Ecuador
B24: Egypt
B25: El Salvador
B26: Ethiopia
B27: European Union
B28: Fiji
B29: Ghana
B30: Guatemala
B31: Guyana
B32: Honduras
B33: Hong Kong
B34: Iceland
B35: India
B36: Indonesia
B37: Iran
B38: Israel
B39: Jamaica
B40: Japan
B41: Jordan
B42: Kenya
B43: Kingdom of Saudi Arabia
B44: Kiribati
B45: Kuwait
B46: Lao's People Democratic Republic
B47: Lebanon
B48: Madagascar
B49: Malaysia
B50: Maldives
B51: Mauritius
B52: Mexico
B53: Namibia
B54: New Zealand
B55: Nicaragua
B56: Nigeria
B57: Norway
B58: Oman
B59: Pakistan
B60: Pakistan
B61: Panama
B62: Paraguay
B63: Peru
B64: Philippines
B65: Qatar
B66: Republic of Korea
B67: Russia
B68: Russia
B69: Rwanda
B70: Saint Lucia
B71: Samoa
B72: Senegal
B73: Seychelles
B74: Singapore
B75: Solomon Islands
B76: South Africa
B77: Sri Lanka
B78: Switzerland
B79: Taiwan (Republic of China)
B80: Tajikistan
B81: Tanzania
B82: Thailand
B83: The Gambia
B84: Tonga
B85: Tunisia
B86: Turkey
B87: Tuvalu
B88: Uganda
B89: Ukraine
B90: United Arab Emirates
B91: United Kingdom
B92: United States of America
B93: Uruguay
B94: Vanuatu
B95: Venezuela
B96: Vietnam
